Workbook

Sheet Cover
C7: LLOYDS BANKING GROUP plc
C8: 2013 FULL YEAR RESULTS
C12: 13 February 2014
C16: Excel Downloads of Relevant Tables

Sheet Index
B1: INDEX
B2: A FULL COPY OF THE 2013 RESULTS, WITH FULL NOTES AND FOOTNOTES CAN BE FOUND AT:
B3: Lloyds Banking Group plc - Company Results - Lloyds Banking Group plc
G7: Risk management
B8: Consolidated income statement | C8: 3 | G8: Impairment Charge by division | L8: 42,43
B9: Balance sheet and key ratios | C9: 3 | G9: Group - Impaired loans and provisios | L9: 44
B10: Consolidated income statement – core and non-core | C10: 4 | G10: Group - Impaired loans and provisions - core | L10: 45
B11: Balance sheet and key ratios - core and non-core | C11: 4 | G11: Group - Impaired loans and provisions - non-core | L11: 46
B12: Summary consolidated balance sheet | C12: 5
G13: Retail - Loans and advances to customers | L13: 47
B14: Group Finance Director’s review of financial performance | G14: Retail - mortgages greater than three months in arrears | L14: 48
B15: Underlying Income | C15: 13 | G15: Retail - Actual and average LTVs across mortgage portfolios | L15: 48
B16: Costs | C16: 14 | G16: Retail - forbearance (secured) | L16: 50
B17: Impairment | C17: 15 | G17: Retail - forbearance (unsecured) | L17: 51
B18: Statutory profit | C18: 16
B19: Risk-weighted assets and capital ratios | C19: 18 | G19: Commercial Banking - LTVs | L19: 56
B20: Funding and liquidity | C20: 19 | G20: Commercial Banking - forbearance | L20: 59
G21: Commercial Banking - forbearance (unimpaired) | L21: 59
B22: Underlying basis segmental analysis | C22: 21
B23: Underlying basis segmental analysis - Core | C23: 22 | G23: WAFI - Ireland impairment Charge | L23: 60
B24: Underlying basis segmental analysis - Non-core | C24: 23 | G24: WAFI - Ireland impaired loans and provisions | L24: 61
B25: Underlying basis quarterly information | C25: 24 | G25: WAFI - Ireland LTVs | L25: 61
G26: WAFI - Ireland secured retail lending | L26: 63
B27: Divisional Highlights | G27: WAFI - Asset finance retail lending | L27: 64
B28: Retail | C28: 26 | G28: WAFI - Ireland wholesale forbearance | L28: 64
B29: Commercial Banking | C29: 28
B30: Wealth, Asset Finance and International | C30: 30 | G30: Liquidity and funding management
B31: Insurance | C31: 32,33 | G31: Group funding position | L31: 66
B32: Insurance (2012 comparator tables) | C32: 32,33 | G32: Reconciliation of funding figure to the balance sheet | L32: 67
B33: Group Operations and Central items | C33: 34 | G33: Analysis of 2013 total wholesale funding by residual maturity | L33: 67
B35: Additional information | G35: Analysis of 2013 term issuance | L35: 68
B36: Reconciliation between statutory and underlying basis results | C36: 35 | G36: Liquidity portfolio | L36: 69
B37: Banking net interest margin | C37: 36
B38: Volatility arising in insurance businesses | C38: 36,37 | G38: Capital management
B39: Number of employees (full-time equivalent) | C39: 38 | G39: Capital resources | L39: 71
G40: Movements in capital | L40: 72
G41: Risk-weighted assets | L41: 73
G42: Capital position - CRD IV basis | L42: 75
G43: Movements in capital - CRD IV | L43: 76
G44: Leverage ratio - CRD IV basis | L44: 78

Sheet p3
B1: UNDERLYING BASIS CONSOLIDATED INCOME STATEMENT
D5: 2013 | F5: 2012¹ | H5: Change
D6: £ million | F6: £ million | H6: %
B8: Net interest income | D8: 10885 | F8: 10335 | H8: 5.321722303
B9: Other income | D9: 7920 | F9: 8051 | H9: -1.627127065
B10: Total underlying income | D10: 18805 | F10: 18386 | H10: 2.278907865
B11: Total costs | D11: -9634.967 | F11: -10124 | H11: 4.830432635
B12: Impairment | D12: -3004 | F12: -5697 | H12: 47.27049324
B13: Underlying profit | D13: 6166.033 | F13: 2565 | H13: 140.3911501
B14: Core | D14: 7574.033 | F14: 6112 | H14: 23.92069699
B15: Non-core | D15: -1408 | F15: -3547 | H15: 60.30448266
B17: Asset sales, liability management and volatile items | D17: -280 | F17: 2532
B18: Simplification and Verde costs | D18: -1516.733 | F18: -1246
B19: Legacy items | D19: -3455 | F19: -4225
B20: Other items | D20: -499 | F20: -232
B21: Profit (loss) before tax – statutory | D21: 415.3 | F21: -606
B22: Taxation | D22: -1217 | F22: -781
B23: Loss for the period | D23: -801.7 | F23: -1387
B25: Loss per share | D25: (1.2)p | F25: (2.0)p | H25: 0.9p
B27: Banking net interest margin | D27: 0.02121798136 | F27: 0.0193 | H27: 19bp
B28: Average interest-earning banking assets | D28: 510.9173896 | F28: 543.3 | H28: -5.960355316
B29: Cost:income ratio (excluding St. James's Place) | D29: 0.529 | F29: 0.551 | H29: (2.2)pp
B30: Asset quality ratio2 | D30: 0.005696807425 | F30: 0.0102 | H30: (45)bp
B31: Return on risk-weighted assets | D31: 0.02138014216 | F31: 0.0077 | H31: 137bp
B33: BALANCE SHEET AND KEY RATIOS
D35: At | F35: At
D36: 31 Dec | F36: 31 Dec | H36: Change
D37: 2013 | F37: 2012 | H37: %
B39: Loans and advances to customers excluding reverse repos3 | D39: 495.1505716 | F39: 512.1 | H39: -3.309788785
B40: Customer deposits excluding repos4 | D40: 438.3129988 | F40: 422.5 | H40: 3.742721616
B41: Loan to deposit ratio5 | D41: 1.129673482 | F41: 1.21 | H41: (8)pp
B42: Total assets | D42: 847 | F42: 934.2 | H42: -9.243416827
B43: Wholesale funding | D43: 137.556841 | F43: 169.6 | H43: -18.89337204
B44: Wholesale funding <1 year maturity | D44: 44.2 | F44: 50.6 | H44: -12.64822134
B45: Risk-weighted assets5 | D45: 263.9 | F45: 310.3 | H45: -14.95327103
B46: Core tier 1 capital ratio | D46: 0.14 | F46: 0.12 | H46: 2.0pp
B47: Pro forma fully loaded common equity tier 1 ratio6 | D47: 0.103 | F47: 0.081 | H47: 2.2pp
B48: Pro forma fully loaded CRD IV leverage ratio (including tier 1 instruments)6,7 | D48: 0.041 | F48: 0.038 | H48: 0.3pp
B49: Fully loaded common equity tier 1 ratio | D49: 0.1 | F49: 0.081 | H49: 1.9pp
B50: Fully loaded CRD IV leverage ratio (including tier 1 instruments)7 | D50: 0.04 | F50: 0.038 | H50: 0.2pp
B52: Net tangible assets per share1 | D52: 48.52488715 | F52: 51.9 | H52: (3.4)p
A55: 1 | B55: Restated to reflect the implementation of IAS 19R and IFRS 10. See page 123.
A56: 2 | B56: Impairment charge as a % of average advances.
A57: 3 | B57: Excludes reverse repos of £0.1 billion (31 December 2012: £5.1 billion).
A58: 4 | B58: Excludes repos of £3.0 billion (31 December 2012: £4.4 billion).
A59: 5 | B59: Loans and advances to customers excluding reverse repos divided by customer deposits excluding repos.
A60: 6 | B60: Pro forma ratios include the benefit of the announced sales of Heidelberger Leben, Scottish Widows Investment Partnership and Sainsbury's Bank.
A61: 7 | B61: Includes the full value of tier 1 instruments reported under the prevailing rules as at 31 December 2013.

Sheet p4
B1: UNDERLYING BASIS CONSOLIDATED INCOME STATEMENT – CORE AND NON-CORE
D4: 2013 | F4: 2012¹ | H4: Change
D5: £ million | F5: £ million | H5: %
B6: Core
B8: Net interest income | D8: 10638 | F8: 9868 | H8: 7.802999595
B9: Other income | D9: 7606 | F9: 7417 | H9: 2.548200081
B10: Total underlying income | D10: 18244 | F10: 17285 | H10: 5.548163147
B11: Total costs | D11: -9148.967 | F11: -9254 | H11: 1.135001081
B12: Impairment | D12: -1521 | F12: -1919 | H12: 20.73996873
B13: Underlying profit | D13: 7574.033 | F13: 6112 | H13: 23.92069699
B15: Banking net interest margin | D15: 0.02490216995 | F15: 0.0232 | H15: 17bp
B16: Asset quality ratio | D16: 0.003497485712 | F16: 0.0044 | H16: (9)bp
B17: Return on risk-weighted assets | D17: 0.0326394036 | F17: 0.0254 | H17: 72bp
B19: Non-core
B21: Net interest income | D21: 247 | F21: 467 | H21: -47.10920771
B22: Other income | D22: 314 | F22: 634 | H22: -50.47318612
B23: Total underlying income | D23: 561 | F23: 1101 | H23: -49.04632153
B24: Total costs | D24: -486 | F24: -870 | H24: 44.13793103
B25: Impairment | D25: -1483 | F25: -3778 | H25: 60.74642668
B26: Underlying loss | D26: -1408 | F26: -3547 | H26: 60
B28: Banking net interest margin | D28: 0.004083469284 | F28: 0.0055 | H28: (14)bp
B29: Asset quality ratio | D29: 0.01611998663 | F29: 0.0308 | H29: (147)bp
B31: BALANCE SHEET AND KEY RATIOS
D33: At | F33: At
D34: 31 Dec | F34: 31 Dec
D35: 2013 | F35: 2012 | H35: Change
B36: Core | H36: %
B38: Loans and advances to customers2 | D38: 436.9348954 | F38: 425.3 | H38: 2.735691362
B39: Customer deposits3 | D39: 435.6129988 | F39: 419.1 | H39: 3.940109479
B40: Core loan to deposit ratio4 | D40: 1.003034566 | F40: 1.01 | H40: (1)pp
B42: Risk-weighted assets | D42: 224.9 | F42: 237.4 | H42: -5.265374895
B44: Non-core
B46: Retail non-core assets | D46: 38.8 | F46: 49.9 | H46: -22.24448898
B47: Non-retail non-core assets | D47: 24.7 | F47: 48.5 | H47: -49.07216495
B48: Total non-core assets | D48: 63.5 | F48: 98.4 | H48: -35.46747967
B50: Risk-weighted assets | D50: 39 | F50: 72.9 | H50: -46.50205761
A52: 1 | B52: Restated to reflect the implementation of IAS 19R and IFRS 10. See page 123.
A53: 2 | B53: Excludes reverse repos of £0.1 billion (31 December 2012: £5.1 billion).
A54: 3 | B54: Excludes repos of £3.0 billion (31 December 2012: £4.4 billion).
A55: 4 | B55: Loans and advances to customers excluding reverse repos divided by customer deposits excluding repos.

Sheet p5
B1: SUMMARY CONSOLIDATED BALANCE SHEET
D3: At 31 Dec | F3: At 31 Dec
D4: 2013 | F4: 2012¹
B5: Assets | D5: £ million | F5: £ million
B7: Cash and balances at central banks | D7: 49915 | F7: 80298
B8: Trading and other financial assets at fair value through profit or loss | D8: 142683 | F8: 160620
B9: Derivative financial instruments | D9: 33125 | F9: 56557
B10: Loans and receivables:
B11: Loans and advances to customers | D11: 495281 | F11: 517225
B12: Loans and advances to banks | D12: 25365 | F12: 32757
B13: Debt securities | D13: 1355 | F13: 5273
D14: 522001 | F14: 555255
B15: Available-for-sale financial assets | D15: 43976 | F15: 31374
B16: Other assets | D16: 55330 | F16: 50117
B17: Total assets | D17: 847030 | F17: 934221
B19: Liabilities
B20: Deposits from banks | D20: 13982 | F20: 38405
B21: Customer deposits | D21: 441311 | F21: 426912
B22: Trading and other financial liabilities at fair value through profit or loss | D22: 43625 | F22: 33392
B23: Derivative financial instruments | D23: 30464 | F23: 48676
B24: Debt securities in issue | D24: 87102 | F24: 117253
B25: Liabilities arising from insurance and investment contracts | D25: 110758 | F25: 137592
B26: Subordinated liabilities | D26: 32312 | F26: 34092
B27: Other liabilities | D27: 48140 | F27: 55318
B28: Total liabilities | D28: 807694 | F28: 891640
B30: Total equity | D30: 39336 | F30: 42581
B31: Total equity and liabilities | D31: 847030 | F31: 934221
A33: 1 | B33: Restated to reflect the implementation of IAS 19R and IFRS 10. See page 123.

Sheet p13
B1: GROUP FINANCE DIRECTOR’S REVIEW OF FINANCIAL PERFORMANCE (continued)
B3: Underlying income
C4: Total | J4: Core
D6: 2013 | F6: 2012 | H6: Change | I6: 2013 | L6: 2012 | N6: Change
D7: £ million | F7: £ million | H7: % | J7: £ million | L7: £ million | N7: %
B9: Net interest income | D9: 10883.93799 | F9: 10331 | H9: 5.352221334 | J9: 10636.93799 | L9: 9864 | N9: 7.835948763
B10: Other income | D10: 7259 | F10: 7726 | H10: -6.044524981 | J10: 6945 | L10: 7092 | N10: -2.072758037
B11: Total underlying income excluding St. Jame's Place | D11: 18142.93799 | F11: 18057 | H11: 0 | J11: 17581.93799 | L11: 16956 | N11: 3.691542734
B12: St. James’s Place | D12: 662.062014 | F12: 329 | J12: 662.062014 | L12: 329
B13: Total underlying income | D13: 18805 | F13: 18386 | H13: 2.278907865 | J13: 18244 | L13: 17285 | N13: 5.548163147
B15: Banking net interest margin | D15: 0.02121798136 | F15: 0.0193 | H15: 19bp | J15: 0.02490216995 | L15: 0.0232 | N15: 17bp
B16: Average interest-earning banking assets | D16: 510.9173896 | F16: 543.4 | H16: -5.977661103 | J16: 420.5027163 | L16: 423.7 | N16: -0.7546102706
B17: Loan to deposit ratio | D17: 1.129673482 | F17: 1.21 | H17: (8)pp | J17: 1.003034566 | L17: 1.01 | N17: (1)pp

Sheet p14
B1: GROUP FINANCE DIRECTOR’S REVIEW OF FINANCIAL PERFORMANCE (continued)
C3: 2013 | F3: 2012 | H3: Change
B4: Total costs | D4: £ million | F4: £ million | H4: %
B6: Core | D6: 9148.967 | F6: 9254 | H6: 1.135001081
B7: Non-core | D7: 486 | F7: 870 | H7: 44.13793103
B8: Total costs | D8: 9634.967 | F8: 10124 | H8: 4.830432635
B10: Cost:income ratio | D10: 0.5123619782 | F10: 0.5506363537 | H10: (3.9)pp
B11: Simplification savings annual run-rate | D11: 1457 | F11: 847

Sheet p15
B1: GROUP FINANCE DIRECTOR’S REVIEW OF FINANCIAL PERFORMANCE (continued)
D3: 2013 | F3: 2012
B4: Impairment | D4: £ million | F4: £ million | H4: %
B6: Core | D6: 1521 | F6: 1919 | H6: 20.73996873
B7: Non-core | D7: 1483 | F7: 3778 | H7: 60.74642668
B8: Total impairment charge | D8: 3004 | F8: 5697 | H8: 47.27049324
D11: 2013 | F11: 2012
D12: % | F12: %
B13: Asset Quality Ratio:
B14: Core | D14: 0.3497485712 | F14: 0.44 | H14: (9)bp
B15: Non-core | D15: 1.61 | F15: 3.08 | H15: (147)bp
B16: Group | D16: 0.57 | F16: 1.02 | H16: (45)bp
B18: Impaired loans as a % of closing advances:
B19: Core | D19: 2.570532859 | F19: 3 | H19: (0.4)pp
B20: Non-core | D20: 29.98479458 | F20: 32.1 | H20: (2.1)pp
B21: Group | D21: 6.306777841 | F21: 8.6 | H21: (2.3)pp
B23: Provisions as a % of impaired loans:
B24: Core | D24: 40.60427553 | F24: 41.2 | H24: (0.6)pp
B25: Non-core | D25: 54.82664365 | F25: 50.7 | H25: 4.1pp
B26: Group | D26: 50.05609025 | F26: 48.2 | H26: 1.9pp

Sheet p16
B1: GROUP FINANCE DIRECTOR’S REVIEW OF FINANCIAL PERFORMANCE (continued)
B3: Statutory profit
C6: 2013 | G6: 2012 1
E7: £ million | G7: £ million
B9: Underlying profit | E9: 6166.033 | G9: 2565
B10: Asset sales, liability management and volatile items:
B11: Asset sales | E11: -687 | G11: -660
C12: Sale of government securities | E12: 787 | G12: 3207
B13: Liability management | E13: -142 | G13: -229
B14: Own debt volatility | E14: -221 | G14: -270
B15: Other volatile items | E15: -457 | G15: -478
B16: Volatility arising in insurance businesses | E16: 668 | G16: 312
B17: Fair value unwind | E17: -228 | G17: 650
E18: -280 | G18: 2532
B19: Simplification and Verde costs
C20: Simplification | E20: -830 | G20: -676
C21: Verde | E21: -686.733 | G21: -570
E22: -1516.733 | G22: -1246
B23: Legacy items:
B24: Payment protection insurance provision | E24: -3050 | G24: -3575
B25: Other regulatory provisions | E25: -405 | G25: -650
E26: -3455 | G26: -4225
B27: Other items:
B28: Past service pensions (charge) credit | E28: -104 | G28: 250
B29: Amortisation of purchased intangibles | E29: -395 | G29: -482
E30: -499 | G30: -232
B31: Profit (loss) before tax – statutory | E31: 415.3 | G31: -606
B32: Taxation | E32: -1217 | G32: -781
B33: Loss for the year | E33: -801.7 | G33: -1387
B34: Loss per share | E34: (1.2)p | G34: (2.1)p
B37: 1 | C37: Restated to reflect the implementation of IAS 19R and IFRS 10. See page 123.

Sheet p18
B1: GROUP FINANCE DIRECTOR’S REVIEW OF FINANCIAL PERFORMANCE (continued)
B3: Risk-weighted assets and capital ratios
D4: At 31 Dec | F4: At 31 Dec | H4: Change
D5: 2013 | F5: 20121 | H5: %
B8: Core risk-weighted assets | D8: 224.9 | F8: 237.4 | H8: -5.265374895
B9: Non-core risk-weighted assets | D9: 39 | F9: 72.9 | H9: -46.50205761
B10: Total risk-weighted assets | D10: 263.9 | F10: 310.3 | H10: -14.95327103
B11: Core tier 1 capital ratio | D11: 0.14 | F11: 0.12 | H11: 2.0pp
B12: Tier 1 capital ratio | D12: 0.145 | F12: 0.138 | H12: 0.7pp
B13: Total capital ratio | D13: 0.208 | F13: 0.173 | H13: 3.5pp
B15: Pro forma fully loaded risk-weighted assets2 | D15: 271.9 | F15: 321.1 | H15: -15.32232949
B16: Pro forma fully loaded common equity tier 1 ratio2 | D16: 0.103 | F16: 0.081 | H16: 2.2pp
B17: Pro forma fully loaded CRD IV leverage ratio2,3 | D17: 0.041 | F17: 0.038 | H17: 0.3pp
B18: Pro forma fully loaded Basel III leverage ratio (2014 rules)2,3,4 | D18: 0.045
B20: Fully loaded risk-weighted assets | D20: 271.1 | F20: 321.1 | H20: -15.57147306
B21: Fully loaded common equity tier 1 ratio | D21: 0.1 | F21: 0.081 | H21: 1.9pp
B22: Fully loaded CRD IV leverage ratio3 | D22: 0.04 | F22: 0.038 | H22: 0.2pp
B23: Fully loaded Basel III leverage ratio (2014 rules)3,4 | D23: 0.044
A25: 1 | B25: Comparatives have not been restated to reflect the implementation of IAS 19R and IFRS 10.
A26: 2 | B26: Pro forma ratios include the benefit of the announced sales of Heidelberger Leben, Scottish Widows Investment Partnership and Sainsbury's Bank.
A27: 3 | B27: Includes the full value of tier 1 instruments reported under the prevailing rules as at 31 December 2013.
A28: 4 | B28: Estimated in accordance with January 2014 revised Basel III leverage ratio framework.

Sheet p19
B1: GROUP FINANCE DIRECTOR’S REVIEW OF FINANCIAL PERFORMANCE (continued)
B4: Funding and liquidity
D5: At 31 Dec | F5: At 31 Dec | H5: Change
D6: 2013 | F6: 20121 | H6: %
B8: Core loans and advances to customers2 | D8: 436.9348954 | F8: 425.3 | H8: 2.735691362
B9: Funded assets | D9: 510.221588 | F9: 538.7 | H9: -5.28650678
B10: Non-core assets | D10: 63.5 | F10: 98.4 | H10: -35.46747967
B11: Non-retail non-core assets | D11: 24.7 | F11: 48.5 | H11: -49.07216495
B12: Customer deposits3 | D12: 438.3129988 | F12: 422.5 | H12: 3.742721616
B13: Wholesale funding | D13: 137.556841 | F13: 169.6 | H13: -18.89337204
B14: Wholesale funding <1 year maturity | D14: 44.2 | F14: 50.6 | H14: -12.64822134
B15: Of which money-market funding <1 year maturity4 | D15: 21.3 | F15: 25 | H15: -14.8
B16: Loan to deposit ratio | D16: 1.129673482 | F16: 1.21 | H16: (8)pp
B17: Core loan to deposit ratio | D17: 1.003034566 | F17: 1.01 | H17: (1)pp
B18: Primary liquid assets | D18: 89.31787933 | F18: 87.6 | H18: 1.961049468
A21: 1 | B21: Restated to reflect the implementation of IAS 19R and IFRS 10. See page 123.
A22: 2 | B22: Excludes reverse repos of £0.1 billion (31 December 2012: £5.1 billion).
A23: 3 | B23: Excludes repos of £3.0 billion (31 December 2012: £4.4 billion).
A24: 4 | B24: Excludes balances relating to margins of £2.2 billion (31 December 2012: £4.5 billion) and settlement accounts of £1.3 billion (31 December 2012: £1.5 billion)

Sheet p21
B1: UNDERLYING BASIS SEGMENTAL ANALYSIS
D2: Retail | F2: Commercial Banking | H2: Wealth, Asset Finance and Int'l | J2: Insurance | L2: Group Operations and Central items | N2: Group
B5: 2013
D6: £m | F6: £m | H6: £m | J6: £m | L6: £m | N6: £m
B8: Net interest income | D8: 7536 | F8: 2426 | H8: 870 | J8: -103 | L8: 156 | N8: 10885
B9: Other income | D9: 1410 | F9: 2708 | H9: 1809 | J9: 2235.970322 | L9: 113 | N9: 8275.970322
B10: Insurance claims | D10: 0 | F10: 0 | H10: 0 | J10: -355.9703221 | L10: 0 | N10: -355.9703221
B11: Total underlying income | D11: 8946 | F11: 5134 | H11: 2679 | J11: 1777 | L11: 269 | N11: 18805
B12: Total costs | D12: -4096 | F12: -2392.2 | H12: -1991 | J12: -687 | L12: -468.767 | N12: -9634.967
B13: Impairment | D13: -1101 | F13: -1167 | H13: -730 | J13: 0 | L13: -6 | N13: -3004
B14: Underlying profit (loss) | D14: 3749 | F14: 1574.8 | H14: -42 | J14: 1090 | L14: -205.767 | N14: 6166.033
B16: Banking net interest margin | D16: 0.02228921403 | F16: 0.01948502913 | H16: 0.02195859964 | N16: 0.02121798136
B17: Asset quality ratio | D17: 0.003197811198 | F17: 0.008299709236 | H17: 0.01786428099 | N17: 0.005696807425
B18: Return on risk-weighted assets | D18: 0.04108943446 | F18: 0.01040021133 | H18: (0.13)% | N18: 0.02138014216
B20: Key balance sheet items | D20: £bn | F20: £bn | H20: £bn | J20: £bn | L20: £bn | N20: £bn
B21: At 31 Dec 2013
B23: Loans and advances to customers¹ | D23: 341.9 | F23: 126.4 | H23: 24.2 | L23: 2.7 | N23: 495.1505716
B24: Customer deposits² | D24: 268.9736817 | F24: 123.5362182 | H24: 45.77221294 | L24: 0 | N24: 438.3129988
B25: Total customer balances | D25: 610.8736817 | F25: 249.9 | H25: 69.97221294 | L25: 2.730885999 | N25: 933.4635705
B27: Risk-weighted assets | D27: 85.7 | F27: 138.5 | H27: 25.9 | L27: 13.8 | N27: 263.9
B30: 2012
D31: £m | F31: £m | H31: £m | J31: £m | L31: £m | N31: £m
B33: Net interest income | D33: 7195 | F33: 2206 | H33: 799 | J33: -78 | L33: 213 | N33: 10335
B34: Other income | D34: 1462 | F34: 2932 | H34: 2043 | J34: 2294 | L34: -315 | N34: 8416
B35: Insurance claims | D35: – | F35: – | H35: – | J35: -365 | L35: – | N35: -365
B36: Total underlying income | D36: 8657 | F36: 5138 | H36: 2842 | J36: 1851 | L36: -102 | N36: 18386
B37: Total costs | D37: -4199 | F37: -2516 | H37: -2291 | J37: -744 | L37: -374 | N37: -10124
B38: Impairment | D38: -1270 | F38: -2946 | H38: -1480 | J38: – | L38: -1 | N38: -5697
B39: Underlying profit (loss) | D39: 3188 | F39: -324 | H39: -929 | J39: 1107 | L39: -477 | N39: 2565
B41: Banking net interest margin | D41: 0.0208 | F41: 1.58% | H41: 1.65% | N41: 1.93%
B42: Asset quality ratio | D42: 0.0036 | F42: 0.0185 | H42: 0.0312 | N42: 0.0102
B43: Return on risk-weighted assets | D43: 0.0321 | F43: (0.18)% | H43: (2.31)% | N43: 0.0077
B45: Key balance sheet items | D45: £bn | F45: £bn | H45: £bn | J45: £bn | L45: £bn | N45: £bn
B46: At 31 Dec 2012
B48: Loans and advances to customers¹ | D48: 343.3 | F48: 134.7 | H48: 33.4 | L48: 0.7 | N48: 512.1
B49: Customer deposits² | D49: 260.8 | F49: 109.7 | H49: 51.9 | L49: 0.1 | N49: 422.5
B50: Total customer balances | D50: 604.1 | F50: 244.4 | H50: 85.3 | L50: 0.8 | N50: 934.6
B52: Risk-weighted assets | D52: 95.5 | F52: 165.2 | H52: 36.2 | L52: 13.4 | N52: 310.3
A54: 1 | B54: Excludes reverse repos.
A55: 2 | B55: Excludes repos.

Sheet p22
B1: UNDERLYING BASIS - CORE BUSINESS
D2: Retail | F2: Commercial Banking | H2: Wealth, Asset Finance and Int'l | J2: Insurance | L2: Group Operations and Central items | N2: Group
B5: 2013
D6: £m | F6: £m | H6: £m | J6: £m | L6: £m | N6: £m
B8: Net interest income | D8: 7525 | F8: 2444 | H8: 574 | J8: -107 | L8: 202 | N8: 10638 | Q8: =IF(IF(E8="",TRUE,IF(CODE(E8)=150,TRUE,FALSE)),"",VALUE(SUBSTITUTE(E8,CHAR(160),""))) -> 
B9: Other income | D9: 1400 | F9: 2480 | H9: 1748 | J9: 2220.970322 | L9: 113 | N9: 7961.970322 | Q9: =IF(IF(E9="",TRUE,IF(CODE(E9)=150,TRUE,FALSE)),"",VALUE(SUBSTITUTE(E9,CHAR(160),""))) -> 
B10: Insurance claims | D10: 0 | F10: 0 | H10: 0 | J10: -355.9703221 | L10: 0 | N10: -355.9703221 | Q10: =IF(IF(E10="",TRUE,IF(CODE(E10)=150,TRUE,FALSE)),"",VALUE(SUBSTITUTE(E10,CHAR(160),""))) -> 
B11: Total underlying income | D11: 8925 | F11: 4924 | H11: 2322 | J11: 1758 | L11: 315 | N11: 18244
B12: Total costs | D12: -4092 | F12: -2307.2 | H12: -1658 | J12: -670 | L12: -421.767 | N12: -9148.967
B13: Impairment | D13: -1059 | F13: -424 | H13: -32 | J13: 0 | L13: -6 | N13: -1521
B14: Underlying profit (loss) | D14: 3774 | F14: 2192.8 | H14: 632 | J14: 1088 | L14: -112.767 | N14: 7574.033
B16: Banking net interest margin | D16: 0.02401320087 | F16: 0.0252720016 | H16: 0.08906783232 | N16: 0.02490216995
B17: Asset quality ratio | D17: 0.003320807951 | F17: 0.003931737854 | H17: 0.004959955628 | N17: 0.003497485712
B18: Return on risk-weighted assets | D18: 0.04545892556 | F18: 0.01744748568 | H18: 0.06666666667 | N18: 0.0326394036
B20: Key balance sheet items | D20: £bn | F20: £bn | H20: £bn | J20: £bn | L20: £bn | N20: £bn
B21: At 31 Dec 2013
B23: Loans and advances to customers¹ | D23: 318.2 | F23: 109.5 | H23: 6.5 | L23: 2.7 | N23: 436.9348954
B24: Customer deposits² | D24: 268.9736817 | F24: 121.0362182 | H24: 45.57221294 | L24: 0 | N24: 435.6129988
B25: Total customer balances | D25: 587.1736817 | F25: 230.5 | H25: 52.07221294 | L25: 2.7 | N25: 872.5478942
B27: Risk-weighted assets | D27: 78.8 | F27: 123.3 | H27: 9 | L27: 13.8 | N27: 224.9
B30: 2012
D31: £m | F31: £m | H31: £m | J31: £m | L31: £m | N31: £m
B33: Net interest income | D33: 7163 | F33: 2242 | H33: 312 | J33: -87 | L33: 238 | N33: 9868
B34: Other income | D34: 1446 | F34: 2442 | H34: 1964 | J34: 2245 | L34: -315 | N34: 7782
B35: Insurance claims | D35: – | F35: – | H35: – | J35: -365 | L35: – | N35: -365
B36: Total underlying income | D36: 8609 | F36: 4684 | H36: 2276 | J36: 1793 | L36: -77 | N36: 17285
B37: Total costs | D37: -4193 | F37: -2232 | H37: -1795 | J37: -710 | L37: -324 | N37: -9254
B38: Impairment | D38: -1192 | F38: -704 | H38: -22 | J38: – | L38: -1 | N38: -1919
B39: Underlying profit (loss) | D39: 3224 | F39: 1748 | H39: 459 | J39: 1083 | L39: -402 | N39: 6112
B41: Banking net interest margin | D41: 0.0225 | F41: 0.0222 | H41: 0.059 | N41: 0.0232
B42: Asset quality ratio | D42: 0.0037 | F42: 0.0067 | H42: 0.0045 | N42: 0.0044
B43: Return on risk-weighted assets | D43: 0.036 | F43: 0.0136 | H43: 0.0507 | N43: 0.0254
B45: Key balance sheet items | D45: £bn | F45: £bn | H45: £bn | J45: £bn | L45: £bn | N45: £bn
B46: At 31 Dec 2012
B48: Loans and advances to customers¹ | D48: 317.3 | F48: 102 | H48: 5.3 | L48: 0.7 | N48: 425.3
B49: Customer deposits² | D49: 260.8 | F49: 107.2 | H49: 51 | L49: 0.1 | N49: 419.1
B50: Total customer balances | D50: 578.1 | F50: 209.2 | H50: 56.3 | L50: 0.8 | N50: 844.4
B52: Risk-weighted assets | D52: 86.6 | F52: 127.8 | H52: 9.6 | L52: 13.4 | N52: 237.4
B54: Excludes reverse repos.
B55: Excludes repos.

Sheet p23
B1: UNDERLYING BASIS - NON-CORE BUSINESS
D3: Retail | F3: Commercial Banking | H3: Wealth, Asset Finance and Int'l | J3: Insurance | L3: Group Operations and Central items | N3: Group
B6: 2013
D7: £m | F7: £m | H7: £m | J7: £m | L7: £m | N7: £m
B9: Net interest income | D9: 11 | F9: -18 | H9: 296 | J9: 4 | L9: -46 | N9: 247 | Q9: =IF(IF(E9="",TRUE,IF(CODE(E9)=150,TRUE,FALSE)),"",VALUE(SUBSTITUTE(E9,CHAR(160),""))) -> 
B10: Other income | D10: 10 | F10: 228 | H10: 61 | J10: 15 | L10: 0 | N10: 314 | Q10: =IF(IF(E10="",TRUE,IF(CODE(E10)=150,TRUE,FALSE)),"",VALUE(SUBSTITUTE(E10,CHAR(160),""))) -> 
B11: Total underlying income | D11: 21 | F11: 210 | H11: 357 | J11: 19 | L11: -46 | N11: 561
B12: Total costs | D12: -4 | F12: -85 | H12: -333 | J12: -17 | L12: -47 | N12: -486
B13: Impairment | D13: -42 | F13: -743 | H13: -698 | J13: 0 | L13: 0 | N13: -1483
B14: Underlying (loss) profit | D14: -25 | F14: -618 | H14: -674 | J14: 2 | L14: -93 | N14: -1408
B16: Banking net interest margin | D16: 0.0006945730789 | F16: 0.001351311288 | H16: 0.009237259172 | N16: 0.0041
B17: Asset quality ratio | D17: 0.001657576499 | F17: 0.0232274097 | H17: 0.02030941319 | N17: 0.0161
B19: Key balance sheet items | D19: £bn | F19: £bn | H19: £bn | J19: £bn | L19: £bn | N19: £bn
B20: At 31 Dec 2013
B22: Total non-core assets | D22: 23.736 | F22: 21.319 | H22: 18.182 | J22: 0.284 | L22: 0 | N22: 63.521
B23: Risk-weighted assets | D23: 6.9 | F23: 15.2 | H23: 16.9 | N23: 39
B26: 2012
D27: £m | F27: £m | H27: £m | J27: £m | L27: £m | N27: £m
B29: Net interest income | D29: 32 | F29: -36 | H29: 487 | J29: 9 | L29: -25 | N29: =L29+J29+H29+F29+D29 -> 467
B30: Other income | D30: 16 | F30: 490 | H30: 79 | J30: 49 | L30: 0 | N30: =L30+J30+H30+F30+D30 -> 634
B31: Total underlying income | D31: 48 | F31: 454 | H31: 566 | J31: 58 | L31: -25 | N31: =L31+J31+H31+F31+D31 -> 1101
B32: Total costs | D32: -6 | F32: -284 | H32: -496 | J32: -34 | L32: -50 | N32: =L32+J32+H32+F32+D32 -> -870
B33: Impairment | D33: -78 | F33: -2242 | H33: -1458 | J33: 0 | L33: 0 | N33: =L33+H33+F33+D33 -> -3778
B34: Underlying (loss) profit | D34: -36 | F34: -2072 | H34: -1388 | J34: 24 | L34: -75 | N34: =L34+J34+H34+F34+D34 -> -3547
B36: Banking net interest margin | D36: 0.0012 | F36: 0.0035 | H36: 0.0113 | N36: 0.0055
B37: Asset quality ratio | D37: 0.0029 | F37: 0.0428 | H37: 0.0342 | N37: 0.0308
B39: Key balance sheet items | D39: £bn | F39: £bn | H39: £bn | J39: £bn | L39: £bn | N39: £bn
B40: At 31 Dec 2012
B42: Total non-core assets | D42: 26 | F42: 43 | H42: 28.9 | J42: 0.5 | L42: 0 | N42: 98.4
B43: Risk-weighted assets | D43: 8.9 | F43: 37.4 | H43: 26.6 | N43: 72.9

Sheet p24
B1: UNDERLYING BASIS SEGMENTAL ANALYSIS (continued)
D3: Quarter | F3: Quarter | H3: Quarter | J3: Quarter | L3: Quarter
D4: ended | F4: ended | H4: ended | J4: ended | L4: ended
D5: 30 June | F5: 30 Sept | H5: 30 June | J5: 31 Mar | L5: 31 Dec
D6: 2013 | F6: 2013 | H6: 2013 | J6: 2013 | L6: 2012
D7: £m | F7: £m | H7: £m | J7: £m | L7: £m
B8: Group
B10: Net interest income | D10: 2918 | F10: 2761 | H10: 2653 | J10: 2553 | L10: 2545
B11: Other income | D11: 1990.970322 | F11: 1879 | H11: 1984 | J11: 2422 | L11: 2040
B12: Insurance claims | D12: -122.9703221 | F12: -85 | H12: -62 | J12: -86 | L12: -30
B13: Total underlying income | D13: 4786 | F13: 4555 | H13: 4575 | J13: 4889 | L13: 4555
B14: Total underlying income excl. SJP | D14: 4671.937986 | F14: 4537 | H14: 4525 | J14: 4409 | L14: 4448
B15: Total costs | D15: -2524.967 | F15: -2361 | H15: -2341 | J15: -2408 | L15: -2587
B16: Impairment | D16: -521 | F16: -670 | H16: -811 | J16: -1002 | L16: -1278
B17: Underlying profit | D17: 1740.033 | F17: 1524 | H17: 1423 | J17: 1479 | L17: 690
B19: Banking net interest margin | D19: 0.0229440667 | F19: 0.0217 | H19: 2.06% | J19: 1.96% | L19: 1.94%
B20: Asset quality ratio | D20: 0.003953629345 | F20: 0.0051 | H20: 0.57% | J20: 0.80% | L20: 0.96%
B21: Return on risk-weighted assets | D21: 0.02554838515 | F21: 0.0214 | H21: 1.93% | J21: 1.96% | L21: 0.87%
B23: Core
B25: Net interest income | D25: 2896 | F25: 2711 | H25: 2579 | J25: 2452 | L25: 2487
B26: Other income | D26: 1970.970322 | F26: 1803 | H26: 1923 | J26: 2265 | L26: 1932
B27: Insurance claims | D27: -122.9703221 | F27: -85 | H27: -62 | J27: -86 | L27: -30
B28: Total underlying income | D28: 4744 | F28: 4429 | H28: 4440 | J28: 4631 | L28: 4389
B29: Total underlying income excl. SJP | D29: 4629.937986 | F29: 4411 | H29: 4390 | J29: 4151 | L29: 4282
B30: Total costs | D30: -2428.967 | F30: -2252 | H30: -2199 | J30: -2269 | L30: -2341
B31: Impairment | D31: -290 | F31: -324 | H31: -416 | J31: -491 | L31: -568
B32: Underlying profit | D32: 2025.033 | F32: 1853 | H32: 1825 | J32: 1871 | L32: 1480
B34: Banking net interest margin | D34: 0.02643493191 | F34: 0.0254 | H34: 2.43% | J34: 2.34% | L34: 2.33%
B35: Asset quality ratio | D35: 0.002347531577 | F35: 0.0032 | H35: 0.34% | J35: 0.51% | L35: 0.50%
B36: Return on risk-weighted assets | D36: 0.03551450877 | F36: 0.0319 | H36: 3.11% | J36: 3.20% | L36: 2.47%
B39: Non-core
B41: Net interest income | D41: 22 | F41: 50 | H41: 74 | J41: 101 | L41: 58
B42: Other income | D42: 20 | F42: 76 | H42: 61 | J42: 157 | L42: 108
B43: Total underlying income | D43: 42 | F43: 126 | H43: 135 | J43: 258 | L43: 166
B44: Total costs | D44: -96 | F44: -109 | H44: -142 | J44: -139 | L44: -246
B45: Impairment | D45: -231 | F45: -346 | H45: -395 | J45: -511 | L45: -710
B46: Underlying loss | D46: -285 | F46: -329 | H46: -402 | J46: -392 | L46: -790
B48: Banking net interest margin | D48: 0.004048015417 | F48: 0.0041 | H48: 0.37% | J48: 0.44% | L48: 0.37%
B49: Asset quality ratio | D49: 0.0128897801 | F49: 0.0141 | H49: 1.62% | J49: 2.03% | L49: 2.80%

Sheet Ret
B1: Retail
J3: 2013 | L3: 2012 1 | N3: Change
J4: £m | L4: £m | N4: %
B6: Net interest income | J6: 7536 | L6: 7195 | N6: 4.739402363
B7: Other income | J7: 1410 | L7: 1462 | N7: -3.556771546
B8: Total underlying income | J8: 8946 | L8: 8657 | N8: 3.338338916
B9: Total costs | J9: -4096 | L9: -4199 | N9: 2.452964992
B10: Impairment | J10: -1101 | L10: -1270 | N10: 13.30708661
B11: Underlying profit | J11: 3749 | L11: 3188 | N11: 17.59723965
B13: Banking net interest margin | J13: 0.02228921403 | L13: 0.0208 | N13: 15bp
B14: Asset quality ratio | J14: 0.003197811198 | L14: 0.0036 | N14: (4)bp
B15: Return on risk-weighted assets | J15: 0.04108943446 | L15: 0.0321 | N15: 90bp
N18: Change
J19: At | L19: At
J20: 31 Dec | L20: 31 Dec
J21: 2013 | L21: 2012 | N21: %
B22: Key balance sheet items | J22: £bn | L22: £bn
B24: Loans and advances to customers2 | J24: 341.9 | L24: 343.3 | N24: 0
B25: Customer deposits3 | J25: 268.9736817 | L25: 260.8 | N25: 3.134080398
B26: Total customer balances | J26: 610.8736817 | L26: 604.1 | N26: 1.121284833
B28: Risk-weighted assets | J28: 85.7 | L28: 95.5 | N28: -10.2617801
D32: Core | J32: Non-core
D33: 2013 | F33: 2012 | H33: Change | J33: 2013 | L33: 2012 | N33: Change
D34: £m | F34: £m | H34: % | J34: £m | L34: £m | N34: %
B35: Net interest income | D35: 7525 | F35: 7163 | H35: 5.053748429 | J35: 11 | L35: 32 | N35: -65.625
B36: Other income | D36: 1400 | F36: 1446 | H36: -3.181189488 | J36: 10 | L36: 16 | N36: -37.5
B37: Total underlying income | D37: 8925 | F37: 8609 | H37: 3.670577303 | J37: 21 | L37: 48 | N37: -56.25
B38: Total costs | D38: -4092 | F38: -4193 | H38: 2.408776532 | J38: -4 | L38: -6 | N38: 33.33333333
B39: Impairment | D39: -1059 | F39: -1192 | H39: 11.15771812 | J39: -42 | L39: -78 | N39: 46.15384615
B40: Underlying profit (loss) | D40: 3774 | F40: 3224 | H40: 17.05955335 | J40: -25 | L40: -36 | N40: 31
B42: Banking net interest margin | D42: 0.02401320087 | F42: 0.0225 | H42: 15bp | J42: 0.0006945730789 | L42: 0.0012 | N42: (5)bp
B43: Asset quality ratio | D43: 0.003320807951 | F43: 0.0037 | H43: (4)bp | J43: 0.001657576499 | L43: 0.0029 | N43: (12)bp
B44: Return on risk-weighted assets | D44: 0.04545892556 | F44: 0.036 | H44: 95bp
D47: Core | J47: Non-core
D48: At | F48: At | H48: Change | J48: At | L48: At | N48: Change
D49: 31 Dec | F49: 31 Dec | J49: 31 Dec | L49: 31 Dec
D50: 2013 | F50: 2012 | J50: 2013 | L50: 2012
B51: Key balance sheet items | D51: £bn | F51: £bn | H51: % | J51: £bn | L51: £bn | N51: %
B53: Loans and advances to customers2 | D53: 318.2 | F53: 317.3 | H53: 0 | J53: 23.7 | L53: 26 | N53: -8.846153846
B54: Customer deposits3 | D54: 268.9736817 | F54: 260.8 | H54: 3.134080398 | J54: 0 | L54: 0 | N54: 0
B55: Total customer balances | D55: 587.1736817 | F55: 578.1 | H55: 1.569569569 | J55: 23.7 | L55: 26 | N55: -8.846153846
B57: Total non-core assets | J57: 23.736 | L57: 26 | N57: -8.707692308
B58: Risk-weighted assets | D58: 78.8 | F58: 86.6 | H58: -9.006928406 | J58: 6.9 | L58: 8.9 | N58: -22.47191011
A61: 1 | B61: Restated.
A62: 2 | B62: Excludes reverse repos.
A63: 3 | B63: Excludes repos.

Sheet CB
B1: Commercial Banking
J3: 2013 | L3: 2012 1 | N3: Change
J4: £m | L4: £m | N4: %
B6: Net interest income | J6: 2426 | L6: 2206 | N6: 9.972801451
B7: Other income | J7: 2708 | L7: 2932 | N7: -7.639836289
B8: Total underlying income | J8: 5134 | L8: 5138 | N8: 0
B9: Total costs | J9: -2392.2 | L9: -2516 | N9: 4.920508744
B10: Impairment | J10: -1167 | L10: -2946 | N10: 60.38696538
B11: Underlying profit | J11: 1574.8 | L11: -324
B13: Banking net interest margin | J13: 0.01948502913 | L13: 0.0158 | N13: 37bp
B14: Asset quality ratio | J14: 0.008299709236 | L14: 0.0185 | N14: (102)bp
B15: Return on risk-weighted assets | J15: 0.01040021133 | L15: (0.18)% | N15: 122bp
J18: At | L18: At | N18: Change
J19: 31 Dec | L19: 31 Dec
J20: 2013 | L20: 2012
B21: Key balance sheet items | J21: £bn | L21: £bn | N21: %
B23: Loans and advances to customers2 | J23: 126.4 | L23: 134.7 | N23: -6.161841128
B24: Debt securities and available-for-sale financial assets | J24: 4.1 | L24: 9.5 | N24: -56.84210526
J25: 130.5 | L25: 144.2 | N25: -9.500693481
B27: Customer deposits3 | J27: 123.5362182 | L27: 109.7 | N27: 12.61277867
B28: Risk-weighted assets | J28: 138.5 | L28: 165.2 | N28: -16.1622276
D32: Core | J32: Non-core
D33: 2013 | F33: 2012 | H33: Change | J33: 2013 | L33: 2012 | N33: Change
D34: £m | F34: £m | H34: % | J34: £m | L34: £m | N34: %
B35: Net interest income | D35: 2444 | F35: 2242 | H35: 9.009812667 | J35: -18 | L35: -36 | N35: 50
B36: Other income | D36: 2480 | F36: 2442 | H36: 1.556101556 | J36: 228 | L36: 490 | N36: -53.46938776
B37: Total underlying income | D37: 4924 | F37: 4684 | H37: 5.12382579 | J37: 210 | L37: 454 | N37: -53.74449339
B38: Total costs | D38: -2307.2 | F38: -2232 | H38: -3.369175627 | J38: -85 | L38: -284 | N38: 70.07042254
B39: Impairment | D39: -424 | F39: -704 | H39: 39.77272727 | J39: -743 | L39: -2242 | N39: 66.85994648
B40: Underlying profit (loss) | D40: 2192.8 | F40: 1748 | H40: 25.44622426 | J40: -618 | L40: -2072 | N40: 70.17374517
B42: Banking net interest margin | D42: 0.0252720016 | F42: 0.0222 | H42: 31bp | J42: 0.001351311288 | L42: 0.0035 | N42: (21)bp
B43: Asset quality ratio | D43: 0.003931737854 | F43: 0.0067 | H43: (28)bp | J43: 0.0232274097 | L43: 0.0428 | N43: (196)bp
B44: Return on risk-weighted assets | D44: 0.01744748568 | F44: 0.0136 | H44: 38bp
D47: Core | J47: Non-core
D48: At | F48: At | H48: Change | J48: At | L48: At | N48: Change
D49: 31 Dec | F49: 31 Dec | J49: 31 Dec | L49: 31 Dec
D50: 2013 | F50: 2012 | J50: 2013 | L50: 2012
B51: Key balance sheet items | D51: £bn | F51: £bn | H51: % | J51: £bn | L51: £bn | N51: %
B53: SME4 | D53: 28.2 | F53: 26.6 | H53: 6.015037594
B54: Other5 | D54: 81.3 | F54: 75.4 | H54: 7.824933687
B55: Loans and advances to customers2 | D55: 109.5 | F55: 102 | H55: 7.352941176 | J55: 16.9 | L55: 32.7 | N55: -48.31804281
B56: Customer deposits3 | D56: 121.0362182 | F56: 107.2 | H56: 12.90691997 | J56: 2.5 | L56: 2.5 | N56: 0
B57: Total customer balances | D57: 230.5362182 | F57: 209.2 | H57: 10.19895708 | J57: 19.4 | L57: 35.2 | N57: -44.88636364
B59: Total non-core assets | J59: 21.319 | L59: 43 | N59: -50.42093023
B60: Risk-weighted assets | D60: 123.3 | F60: 127.8 | H60: -4 | J60: 15.2 | L60: 37.4 | N60: -59.35828877
A64: 1 | B64: Restated.
A65: 2 | B65: Excludes reverse repos.
A66: 3 | B66: Excludes repos.
A67: 4 | B67: SME comprises clients with turnover of up to £25 million in line with lending data supplied by the Bank of England.
A68: 5 | B68: Includes Mid Markets, Global Corporates, Financial Institutions and Other.

Sheet WAFI
B1: Wealth, Asset Finance and International
J3: Excluding St. James's Place
D4: 2013 | F4: 2012 1 | H4: Change | J4: 2013 | L4: 2012 1 | N4: Change
D5: £m | F5: £m | H5: % | J5: £m | L5: £m | N5: %
B7: Net interest income | D7: 870 | F7: 799 | H7: 8.886107635 | J7: 868.937986 | L7: 795 | N7: 9.300375601
B8: Other income | D8: 1809 | F8: 2043 | H8: -11.45374449 | J8: 1688 | L8: 1718 | N8: -1.746216531
B9: Total underlying income | D9: 2679 | F9: 2842 | H9: -5.735397607 | J9: 2556.937986 | L9: 2513 | N9: 1.748427618
B10: Total costs | D10: -1991 | F10: -2291 | H10: 13.09471846 | J10: -1947 | L10: -2123 | N10: 8.29015544
B11: Impairment | D11: -730 | F11: -1480 | H11: 50.67567568 | J11: -730 | L11: -1480 | N11: 50.67567568
B12: Underlying loss | D12: -42 | F12: -929 | H12: 95.47900969 | J12: -120.062014 | L12: -1090 | N12: 88.98513633
B13: Underlying profit by business:
B14: Wealth | D14: 338 | F14: 302 | H14: 11.9205298 | J14: 260 | L14: 141 | N14: 84.39716312
B15: Asset Finance | D15: 505 | F15: 322 | H15: 56.83229814 | J15: 505 | L15: 322 | N15: 56.83229814
B16: International | D16: -885 | F16: -1553 | H16: 43.01352222 | J16: -885 | L16: -1553 | N16: 43.01352222
D17: -42 | F17: -929 | H17: 95.47900969 | J17: -120 | L17: -1090 | N17: 88.99082569
B19: Banking net interest margin | D19: 0.02195859964 | F19: 0.0165 | H19: 55bp | J19: 0.02195859964 | L19: 0.0165 | N19: 55bp
B20: Asset quality ratio | D20: 0.01786428099 | F20: 0.0312 | H20: (133)bp | J20: 0.01786428099 | L20: 0.0312 | N20: (133)bp
B21: Return on risk-weighted assets | D21: (0.13)% | F21: (2.31)% | H21: 218bp | J21: (0.38)% | L21: (2.71)% | N21: (233)bp
D25: At | F25: At | H25: Change
D26: 31 Dec | F26: 31 Dec
D27: 2013 | F27: 2012
B28: Key balance sheet items | D28: £bn | F28: £bn | H28: %
B30: Loans and advances to customers2 | D30: 24.2 | F30: 33.4 | H30: -27.54491018
B31: Customer deposits2 | D31: 45.77221294 | F31: 51.9 | H31: -11.80691147
B32: Operating lease assets | D32: 2.8 | F32: 2.8
B33: Total customer balances | D33: 72.77221294 | F33: 88.1 | H33: -17.39816919
B35: Risk-weighted assets | D35: 25.9 | F35: 36.2 | H35: -28.45303867
D39: Core | J39: Non-core
D40: 2013 | F40: 2012 1 | H40: Change | J40: 2013 | L40: 2012 | N40: Change
D41: £m | F41: £m | H41: % | J41: £m | L41: £m | N41: %
B43: Net interest income | D43: 574 | F43: 312 | H43: 83.97435897 | J43: 296 | L43: 487 | N43: -39.21971253
B44: Other income | D44: 1748 | F44: 1964 | H44: -10.99796334 | J44: 61 | L44: 79 | N44: -22.78481013
B45: Total underlying income | D45: 2322 | F45: 2276 | H45: 2.021089631 | J45: 357 | L45: 566 | N45: -36.92579505
B46: Total costs | D46: -1658 | F46: -1795 | H46: 7.632311978 | J46: -333 | L46: -496 | N46: 32.86290323
B47: Impairment | D47: -32 | F47: -22 | H47: -45.45454545 | J47: -698 | L47: -1458 | N47: 52.12620027
B48: Underlying profit | D48: 632 | F48: 459 | H48: 37.69063181 | J48: -674 | L48: -1388 | N48: -51.44092219
B49: Underlying profit excluding St. James's Place3 | D49: 554 | F49: 298 | H49: 85.90604027
B51: Banking net interest margin | D51: 0.08906783232 | F51: 0.059 | H51: 301bp | J51: 0.009237259172 | L51: 0.0113 | N51: (21)bp
B52: Asset quality ratio | D52: 0.004959955628 | F52: 0.0045 | H52: 5bp | J52: 0.02030941319 | L52: 0.0342 | N52: (139)bp
B53: Return on risk-weighted assets | D53: 0.06666666667 | F53: 0.0507 | H53: 160bp
D56: Core | J56: Non-core
D57: At | F57: At | H57: Change | J57: At | L57: At | N57: Change
D58: 31 Dec | F58: 31 Dec | J58: 31 Dec | L58: 31 Dec
D59: 2013 | F59: 2012 | J59: 2013 | L59: 2012
B60: Key balance sheet items | D60: £bn | F60: £bn | H60: % | J60: £bn | L60: £bn | N60: %
B62: Loans and advances to customers2 | D62: 6.5 | F62: 5.3 | H62: 22.64150943 | J62: 17.7 | L62: 28.1 | N62: -37.01067616
B63: Customer deposits2 | D63: 45.57221294 | F63: 51 | H63: -10.64271972 | J63: 0.2 | L63: 0.9 | N63: -77.77777778
B64: Operating lease assets | D64: 2.8 | F64: 2.7 | H64: 3.703703704 | J64: 0 | L64: 0.1
B65: Total customer balances | D65: 54.87221294 | F65: 59 | H65: -6.996249246 | J65: 17.9 | L65: 29.1 | N65: -38
B67: Total non-core assets | J67: 18.182 | L67: 28.9 | N67: -37.08650519
B68: Risk-weighted assets | D68: 9 | F68: 9.6 | H68: -6.25 | J68: 16.9 | L68: 26.6 | N68: -36.46616541
B69: Funds under management | D69: 151.8 | F69: 188.6 | H69: -19.51219512 | J69: 0 | L69: 0.5
A72: 1 | B72: Restated.
A73: 2 | B73: Excludes reverse repos on loans and advances and excluding repos on deposits.
A74: 3 | B74: The gain relating to the sales of shares in St. James’s Place is included in Central items.

Sheet Ins
B1: Insurance
J3: 2013 | L3: 2012 1 | N3: Change
J4: £m | L4: £m | N4: %
B6: Net interest income | J6: -103 | L6: -78 | N6: -32 | P6: =IF(IF(K6="",TRUE,IF(CODE(K6)=150,TRUE,FALSE)),"",VALUE(SUBSTITUTE(K6,CHAR(160),""))) -> 
B7: Other income | J7: 2235.970322 | L7: 2294 | N7: -2.529628504
B8: Insurance claims | J8: -355.9703221 | L8: -365 | N8: 2.473884353
B9: Total underlying income | J9: 1777 | L9: 1851 | N9: -3.997839006
B10: Total costs | J10: -687 | L10: -744 | N10: 7.661290323
B11: Underlying profit | J11: 1090 | L11: 1107 | N11: -1.535682023
B13: Operating cash generation | J13: 692 | L13: 844 | N13: -18.00947867
B14: UK Life IFRS new business margin | J14: 0.026 | L14: 0.032 | N14: (60)bp
B15: UK Life, pensions and investment sales (PVNBP) | J15: 9934 | L15: 10005 | N15: -0.7096451774
B16: General Insurance total GWP | J16: 1307 | L16: 1419 | N16: -7.892882311
B17: General Insurance combined ratio | J17: 0.77 | L17: 0.72 | N17: 5pp
B18: Return on equity2 | J18: 0.13 | L18: 0.12 | N18: 1pp
U19: =IF(IF(M19="",TRUE,IF(CODE(M19)=150,TRUE,FALSE)),"",VALUE(SUBSTITUTE(M19,CHAR(160),""))) -> 
A20: 1 | B20: Restated.
A21: 2 | B21: Return on Equity’ is the underlying profit less tax at the prevailing UK Corporation tax rate divided by the average amount of the Group’s equity attributable to the Insurance business.
B23: IFRS underlying profit by product group
D24: 2013 | N24: 2012
D25: Pensions & investments | F25: Protection & annuities | H25: General Insurance | J25: Other1 | L25: Total | N25: Total
D26: £m | F26: £m | H26: £m | J26: £m | L26: £m | N26: £m
B27: New business income | D27: 276 | F27: 139 | H27: 0 | J27: 16 | L27: 431 | N27: 519
B28: Existing bussiness income | D28: 599 | F28: 132 | H28: 0 | J28: 92 | L28: 823 | N28: 791
B29: Assumption changes and experience variances | D29: -158 | F29: 302 | H29: 0 | J29: -78 | L29: 66 | N29: -31
B30: General Insurance income net of claims | D30: 0 | F30: 0 | H30: 457 | J30: 0 | L30: 457 | N30: 572
B31: Total underlying income | D31: 717 | F31: 573 | H31: 457 | J31: 30 | L31: 1777 | N31: 1851
B32: Total costs | D32: -360 | F32: -128 | H32: -160 | J32: -39 | L32: -687 | N32: -744
B33: Underlying profit | D33: 357 | F33: 445 | H33: 297 | J33: -9 | L33: 1090 | N33: 1107
B35: Underlying profit 20122 | D35: 404 | F35: 289 | H35: 409 | J35: 5 | L35: 1107
A37: 1 | B37: 'Other’ includes the results of the European business in addition to income from return on free assets, interest expense and certain provisions.
A38: 2 | B38: Full 2012 comparator tables for the profit and cash disclosures can be found on the Lloyds Banking Group investor site.
B41: Operating cash generation
D42: 2013 | N42: 2012
D43: Pensions & investments | F43: Protection & annuities | H43: General Insurance | J43: Other | L43: Total | N43: Total
D44: £m | F44: £m | H44: £m | J44: £m | L44: £m | N44: £m
B45: Cash invested in new business | D45: -261 | F45: -3 | H45: 0 | J45: -21 | L45: -285 | N45: -264
B46: Cash generated from existing business | D46: 485 | F46: 139 | H46: 0 | J46: 56 | L46: 680 | N46: 704
B47: Cash generated from General Insurance | D47: 0 | F47: 0 | H47: 374 | J47: 0 | L47: 374 | N47: 409
B48: Change in intra group commission terms | D48: 0 | F48: 0 | H48: -77 | J48: 0 | L48: -77 | N48: 0
B49: Operating cash generation | D49: 224 | F49: 136 | H49: 297 | J49: 35 | L49: 692 | N49: 849
B50: Intangibles and other adjustments | D50: 133 | F50: 309 | H50: 0 | J50: -44 | L50: 398 | N50: 258
B51: Underlying profit (loss) before tax | D51: 357 | F51: 445 | H51: 297 | J51: -9 | L51: 1090 | N51: 1107
B52: Operating cash generation 2012 | D52: 223 | F52: 184 | H52: 409 | J52: 33

Sheet Ins (2012)
B1: Insurance
B4: Profit by Product
C5: 2012
C6: Pensions & Investments | D6: Protection & Annuities | E6: General Insurance | F6: Other | G6: Total
P7: =IF(IF(K7="",TRUE,IF(CODE(K7)=150,TRUE,FALSE)),"",VALUE(SUBSTITUTE(K7,CHAR(160),""))) -> 
B8: New Business Income | C8: 269 | D8: 214 | E8: 0 | F8: 36 | G8: 519
B9: Existing Business income | C9: 590 | D9: 87 | E9: 0 | F9: 114 | G9: 791
B10: Assumption changes and experience variances | C10: -77 | D10: 83 | E10: 0 | F10: -37 | G10: -31
B11: General Insurance income, net of claims | C11: 0 | D11: 0 | E11: 572 | F11: 0 | G11: 572
B13: Total underlying income | C13: 782 | D13: 384 | E13: 572 | F13: 113 | G13: 1851
B14: Total costs | C14: -378 | D14: -95 | E14: -163 | F14: -108 | G14: -744
B15: Underlying profit 2012 | C15: 404 | D15: 289 | E15: 409 | F15: 5 | G15: 1107
U20: =IF(IF(M20="",TRUE,IF(CODE(M20)=150,TRUE,FALSE)),"",VALUE(SUBSTITUTE(M20,CHAR(160),""))) -> 
B22: Operating Cash Generation
C23: 2012
C24: Pensions & Investments | D24: Protection & Annuities | E24: General Insurance | F24: Other | G24: Total
B26: Cash invested in new business | C26: -263 | D26: 36 | E26: 0 | F26: -37 | G26: -264
B27: Cash generated from existing business | C27: 486 | D27: 148 | E27: 0 | F27: 70 | G27: 704
B28: Cash generated from General Insurance | C28: 0 | D28: 0 | E28: 409 | F28: 0 | G28: 409
B30: Operating cash generation | C30: 223 | D30: 184 | E30: 409 | F30: 33 | G30: 849
B31: Intangibles and other adjustments | G31: 258
G32: 1107

Sheet Grp Ops CI
B1: Group Operations
C3: 2013 | F3: 2012 1
D4: £m | F4: £m
B6: Total underlying income | D6: 6 | F6: 30
B7: Direct costs:
B8: Information technology | D8: -1172 | F8: -1171
B9: Operations | D9: -825 | F9: -822
B10: Property | D10: -876 | F10: -892
B11: Support functions | D11: -92 | F11: -92
D12: -2965 | F12: -2977
B13: Result before recharges to divisions | D13: -2959 | F13: -2947
B14: Total net recharges to divisions | D14: 2902 | F14: 2896
B15: Underlying loss | D15: -57 | F15: -51
A17: 1 | B17: 2012 comparative figures have been amended to reflect the effect of the continuing consolidation of operations across the Group. To ensure a fair comparison of the 2013 performance, 2012 direct costs have been restated with an equivalent offsetting increase in recharges to divisions.
B18: Central Items
C19: 2013 | F19: 2012
D20: £m | F20: £m
B22: Total underlying income (expense) | D22: 263 | F22: -132
B23: Total costs | D23: -405.767 | F23: -293
B24: Impairment | D24: -6 | F24: -1
B25: Underlying (loss) profit | D25: -148.767 | F25: -426

Sheet p35
B1: Reconciliation between statutory and underlying basis results
E3: Removal of:
D4: Lloyds | F4: Acquisition | H4: Volatility
B5: 2013 | D5: Banking | F5: related and | H5: arising in | L5: Legal and
D6: Group | F6: other items1 | H6: insurance | J6: Insurance | L6: regulatory | N6: Fair value | P6: Underlying
D7: statutory | H7: businesses | J7: gross up | L7: provisions2 | N7: unwind | P7: basis
D8: £m | F8: £m | H8: £m | J8: £m | L8: £m | N8: £m | P8: £m
B10: Net interest income | D10: 7338 | F10: -14 | H10: 0 | J10: 2930 | L10: 0 | N10: 631 | P10: 10885
B11: Other income, net of insurance claims | D11: 11140 | F11: 460 | H11: -668 | J11: -3074 | L11: 0 | N11: 62 | P11: 7920
B12: Total underlying income | D12: 18478 | F12: 446 | H12: -668 | J12: -144 | L12: 0 | N12: 693 | P12: 18805
B13: Operating expenses3 | D13: -15322 | F13: 2041 | H13: 0 | J13: 144 | L13: 3455 | N13: 47 | P13: -9635
B14: Impairment | D14: -2741 | F14: 249 | H14: 0 | J14: 0 | L14: 0 | N14: -512 | P14: -3004
B15: Profit (loss) | D15: 415 | F15: 2736 | H15: -668 | J15: 0 | L15: 3455 | N15: 228 | P15: 6166
E18: Removal of:
D19: Lloyds | H19: Volatility
B20: 2012 | D20: Banking | F20: Acquisition | H20: arising in | L20: Legal and
D21: Group | F21: related and | H21: insurance | J21: Insurance | L21: regulatory | N21: Fair value | P21: Underlying
D22: statutory4 | F22: other items5 | H22: businesses | J22: gross up4 | L22: provisions2 | N22: unwind | P22: basis
D23: £m | F23: £m | H23: £m | J23: £m | L23: £m | N23: £m | P23: £m
B25: Net interest income | D25: 7718 | F25: -199 | H25: -8 | J25: 2587 | L25: 0 | N25: 237 | P25: 10335
B26: Other income, net of insurance claims | D26: 12799 | F26: -1691 | H26: -304 | J26: -2760 | L26: 50 | N26: -43 | P26: 8051
B27: Total underlying income | D27: 20517 | F27: -1890 | H27: -312 | J27: -173 | L27: 50 | N27: 194 | P27: 18386
B28: Operating expenses3 | D28: -15974 | F28: 1478 | H28: 0 | J28: 173 | L28: 4175 | N28: 24 | P28: -10124
B29: Impairment | D29: -5149 | F29: 320 | H29: 0 | J29: 0 | L29: 0 | N29: -868 | P29: -5697
B30: Profit (loss) | D30: -606 | F30: -92 | H30: -312 | J30: 0 | L30: 4225 | N30: -650 | P30: 2565
A33: 1 | B33: Comprises the effects of asset sales (gain of £100 million), volatile items (loss of £678 million), liability management (loss of £142 million), Simplification costs related to severance, IT and business costs of implementation (£830 million), EC mandated retail business disposal costs (£687 million), the past service pensions charge (£104 million) and the amortisation of purchased intangibles (£395 million).
A34: 2 | B34: Comprises the payment protection insurance provision of £3,050 million (2012: £3,575 million) and other regulatory provisions of £405 million (2012: £650 million).
A35: 3 | B35: On an underlying basis, this is described as total costs.
A36: 4 | B36: Restated to reflect the implementation of IAS 19 and IFRS 10. See page 123.
A37: 5 | B37: Comprises the effects of asset sales (gain of £2,547 million), volatile items (loss of £748 million), liability management (loss of £229 million), Simplification costs (£676 million), EC mandated retail business disposal costs (£570 million), the past service pensions credit (£250 million) and the amortisation of purchased intangibles (£482 million).

Sheet p36p37
B1: Banking net interest margin
D3: 2013 | F3: 2012
D4: £m | F4: £m
B6: Banking net interest income – underlying basis | D6: 10840.96329 | F6: 10480 | J6: =IF(IF(E6="",TRUE,IF(CODE(E6)=150,TRUE,FALSE)),"",VALUE(SUBSTITUTE(E6,CHAR(160),""))) -> 
B7: Insurance division | D7: -103 | F7: -78
B8: Other net interest income (including trading activity) | D8: 147.0367106 | F8: -67
B9: Group net interest income – underlying basis | D9: 10885 | F9: 10335 | P9: =IF(IF(J9="",TRUE,IF(CODE(J9)=150,TRUE,FALSE)),"",VALUE(SUBSTITUTE(J9,CHAR(160),""))) -> 
B10: Fair value unwind | D10: -631 | F10: -237
B11: Banking volatility and liability management gains | D11: 14 | F11: 199
B12: Insurance gross up | D12: -2930 | F12: -2587
B13: Volatility arising in insurance businesses | D13: 0 | F13: 8
B14: Group net interest income – statutory | D14: 7338 | F14: 7718
B17: Volatility arising in insurance businesses
D19: 2013 | F19: 2012
D20: £ million | F20: £ million
B22: Insurance volatility | D22: 218 | F22: 189
B23: Policyholder interests volatility1 | D23: 564 | F23: 143
B24: Total volatility | D24: 782 | F24: 332
B25: Insurance hedging arrangements | D25: -114 | F25: -20
B26: Total | D26: 668 | F26: 312
A28: 1 | B28: Includes volatility relating to the Group’s interest in St. James’s Place. | IH28: On an underlying basis, this is described as total costs. | IK28: 3 | IL28: On an underlying basis, this is described as total costs. | IO28: 3 | IP28: On an underlying basis, this is described as total costs. | IS28: 3 | IT28: On an underlying basis, this is described as total costs.
B30: Insurance volatility
B32: United Kingdom | D32: 2013 | F32: 2012
D33: % | F33: %
B35: Investments backing annuity liabilities | D35: 3.83 | F35: 3.89
B36: Equities and property | D36: 5.58 | F36: 5.48
B37: UK Government bonds | D37: 2.58 | F37: 2.48
B38: Corporate bonds | D38: 3.18 | F38: 3.08

Sheet p38
B1: Number of employees (full-time equivalent)
D3: 2013 | F3: 2012
B5: Retail | D5: 40276 | F5: 41460
B6: Commercial Banking | D6: 7718 | F6: 8051
B7: Wealth, Asset Finance and International | D7: 6960 | F7: 9131
B8: Insurance | D8: 2373 | F8: 2293
B9: Group Operations | D9: 21602 | F9: 23666
B10: Central items | D10: 12386 | F10: 12490
D11: 91315 | F11: 97091
B12: Agency staff (full-time equivalent) | D12: -2338 | F12: -4303
B13: Total number of employees (full-time equivalent) | D13: 88977 | F13: 92788

Sheet p42p43
B2: Impairment charge by division
D5: 2013 | F5: 2012 | H5: Change
B6: Group | D6: £m | F6: £m | H6: %
K7: =IF(IF(F7="",TRUE,IF(CODE(F7)=150,TRUE,FALSE)),"",VALUE(SUBSTITUTE(F7,CHAR(160),""))) -> 
B8: Retail: | L8: =IF(IF(E8="",TRUE,IF(CODE(E8)=150,TRUE,FALSE)),"",VALUE(SUBSTITUTE(E8,CHAR(160),""))) ->  | R8: =IF(IF(J8="",TRUE,IF(CODE(J8)=150,TRUE,FALSE)),"",VALUE(SUBSTITUTE(J8,CHAR(160),""))) -> 
B9: Secured | D9: 253 | F9: 377 | H9: 32.89124668
B10: Unsecured | D10: 848 | F10: 893 | H10: 5.039193729
D11: 1101 | F11: 1270 | H11: 13.30708661
B12: Commercial Banking | R12: =IF(IF(J12="",TRUE,IF(CODE(J12)=150,TRUE,FALSE)),"",VALUE(SUBSTITUTE(J12,CHAR(160),""))) -> 
D13: 1167 | F13: 2946 | H13: 60.38696538
B14: Wealth, Asset Finance and International | R14: =IF(IF(J14="",TRUE,IF(CODE(J14)=150,TRUE,FALSE)),"",VALUE(SUBSTITUTE(J14,CHAR(160),""))) -> 
B15: Wealth | D15: 18 | F15: 23 | H15: 21.73913043
B16: Ireland | D16: 608 | F16: 1245 | H16: 51.16465863
B17: Other international | D17: 33 | F17: 76 | H17: 56.57894737
B18: Asset Finance | D18: 71 | F18: 136 | H18: 47.79411765
D19: 730 | F19: 1480 | H19: 50.67567568
B21: Central items | D21: 6 | F21: 1 | R21: =IF(IF(J21="",TRUE,IF(CODE(J21)=150,TRUE,FALSE)),"",VALUE(SUBSTITUTE(J21,CHAR(160),""))) -> 
B22: Total impairment charge | D22: 3004 | F22: 5697 | H22: 47.27049324 | R22: =IF(IF(J22="",TRUE,IF(CODE(J22)=150,TRUE,FALSE)),"",VALUE(SUBSTITUTE(J22,CHAR(160),""))) -> 
R23: =IF(IF(J23="",TRUE,IF(CODE(J23)=150,TRUE,FALSE)),"",VALUE(SUBSTITUTE(J23,CHAR(160),""))) -> 
B24: Impairment charge as a % of average advances | D24: 0.0057 | F24: 0.0102 | H24: (45)bp
B26: Total impairment charge comprises: | D26: 2013 | F26: 2012 | H26: Change
D27: £m | F27: £m | H27: %
B29: Loans and advances to customers | D29: 2988 | F29: 5654 | H29: 47.15245844
B30: Debt securities classified as loans and receivables | D30: 1 | F30: 15 | H30: 93.33333333
B31: Available-for-sale financial assets | D31: 15 | F31: 37 | H31: 59.45945946
B32: Other credit risk provisions | D32: 0 | F32: -9
B33: Total impairment charge | D33: 3004 | F33: 5697 | H33: 47.27049324
B37: Core | R37: =IF(IF(J37="",TRUE,IF(CODE(J37)=150,TRUE,FALSE)),"",VALUE(SUBSTITUTE(J37,CHAR(160),""))) -> 
B39: Retail: | R39: =IF(IF(J39="",TRUE,IF(CODE(J39)=150,TRUE,FALSE)),"",VALUE(SUBSTITUTE(J39,CHAR(160),""))) -> 
B40: Secured | D40: 218 | F40: 304 | H40: 28.28947368
B41: Unsecured | D41: 841 | F41: 888 | H41: 5.292792793
D42: 1059 | F42: 1192 | H42: 11.15771812
B44: Commercial Banking | D44: 424 | F44: 704 | H44: 39.77272727
B45: Wealth, Asset Finance and International
B46: Wealth | D46: 18 | F46: 23 | H46: 21.73913043
B47: Asset Finance | D47: 14 | F47: -1
D48: 32 | F48: 22 | H48: -45.45454545
B50: Central items | D50: 6 | F50: 1
B51: Core impairment charge | D51: 1521 | F51: 1919 | H51: 20.73996873
B53: Core impairment charge as a % of average advances | D53: 0.0035 | F53: 0.0044 | H53: (9)bp
B57: Non-core | R57: =IF(IF(J57="",TRUE,IF(CODE(J57)=150,TRUE,FALSE)),"",VALUE(SUBSTITUTE(J57,CHAR(160),""))) -> 
B59: Retail:
B60: Secured | D60: 35 | F60: 73 | H60: 52.05479452
B61: Unsecured | D61: 7 | F61: 5 | H61: -40
D62: 42 | F62: 78 | H62: 46.15384615
B64: Commercial Banking | D64: 743 | F64: 2242 | H64: 66.85994648
B65: Wealth, Asset Finance and International
B66: Ireland | D66: 608 | F66: 1245 | H66: 51.16465863
B67: Other international | D67: 33 | F67: 76 | H67: 56.57894737
B68: Asset Finance | D68: 57 | F68: 137 | H68: 58.39416058
D69: 698 | F69: 1458 | H69: 52.12620027
B70: Non-core impairment charge | D70: 1483 | F70: 3778 | H70: 60.74642668
B72: Non-core impairment charge as a % of average advances | D72: 0.0161 | F72: 0.0308 | H72: (147)bp | R72: =IF(IF(J72="",TRUE,IF(CODE(J72)=150,TRUE,FALSE)),"",VALUE(SUBSTITUTE(J72,CHAR(160),""))) -> 
R73: =IF(IF(J73="",TRUE,IF(CODE(J73)=150,TRUE,FALSE)),"",VALUE(SUBSTITUTE(J73,CHAR(160),""))) -> 

Sheet p44
B1: Impaired loans and provisions
B3: Group
B4: At 31 December 2013 | D4: Loans and advances to customers | F4: Impaired loans | H4: Impaired loans as a % of closing advances | J4: Impairment provisions1 | L4: Impairment provisions as % of impaired loans2
D5: £m | F5: £m | H5: % | J5: £m | L5: %
B7: Retail
B8: Secured | D8: 323107 | F8: 5641 | H8: 1.745861278 | J8: 1472 | L8: 26.09466407
B9: Unsecured | D9: 21566 | F9: 1546 | H9: 7.168691459 | J9: 578 | L9: 86.91729323
D10: 344673 | F10: 7187 | H10: 2.085164779 | J10: 2050 | L10: 32.50872185
B12: Commercial Banking | D12: 132602 | F12: 14714 | H12: 11.09636355 | J12: 6415 | L12: 43.59793394
B13: Wealth, Asset Finance and International
B14: Wealth | D14: 3218 | F14: 349 | H14: 10.84524549 | J14: 70 | L14: 20.05730659
B15: Ireland | D15: 15374 | F15: 9324 | H15: 60.64784701 | J15: 6718 | L15: 72.05062205
B16: Other international | D16: 7146 | F16: 212 | H16: 2.966694654 | J16: 108 | L16: 50.94339623
B17: Asset Finance | D17: 5712 | F17: 473 | H17: 8.280812325 | J17: 346 | L17: 73.15010571
D18: 31450 | F18: 10358 | H18: 32.93481717 | J18: 7242 | L18: 69.91697239
B20: Reverse repos and other items | D20: 2779 | F20: 0 | J20: 0
B21: Total gross lending | D21: 511504 | F21: 32259 | H21: 6.306695549 | J21: 15707 | L21: 50.05736503
B22: Impairment provisions | D22: -15707
B23: Fair value adjustments3 | D23: -516
B24: Total Group | D24: 495281
B27: At 31 December 2012
B29: Retail
B30: Secured | D30: 323862 | F30: 6321 | H30: 1.95175723 | J30: 1616 | L30: 25.56557507
B31: Unsecured | D31: 22698 | F31: 1999 | H31: 8.806943343 | J31: 719 | L31: 82.64367816
D32: 346560 | F32: 8320 | H32: 2.400738689 | J32: 2335 | L32: 32.47114449
B34: Commercial Banking | D34: 144770 | F34: 23965 | H34: 16.55384403 | J34: 9984 | L34: 41.66075527
B36: Wealth, Asset Finance and International
B37: Wealth | D37: 4325 | F37: 284 | H37: 6.566473988 | J37: 73 | L37: 25.70422535
B38: Ireland | D38: 19531 | F38: 12501 | H38: 64.00593928 | J38: 8574 | L38: 68.58651308
B39: Other international | D39: 9171 | F39: 299 | H39: 3.26027696 | J39: 212 | L39: 70.90301003
B40: Asset Finance | D40: 9900 | F40: 924 | H40: 9.333333333 | J40: 594 | L40: 64.28571429
D41: 42927 | F41: 14008 | H41: 32.63214294 | J41: 9453 | L41: 67.48286693
B43: Reverse repos and other items | D43: 5814 | F43: 0 | J43: 0
B44: Total gross lending | D44: 540071 | F44: 46293 | H44: 8.571650764 | J44: 21772 | L44: 48.20653618
B45: Impairment provisions | D45: -21772
B46: Fair value adjustments3 | D46: -1074
B47: Total Group | D47: 517225
A50: 1 | B50: Impairment provisions include collective unimpaired provisions.
A51: 2 | B51: Impairment provisions as a percentage of impaired loans are calculated excluding Retail unsecured loans in recoveries (31 December 2013: £881 million, 31 December 2012: £1,129 million).
A52: 3 | B52: The fair value adjustments relating to loans and advances were those required to reflect the HBOS assets in the Group’s consolidated financial records at their fair value and took into account both the expected losses and market liquidity at the date of acquisition. The unwind relating to future impairment losses requires significant management judgement to determine its timing which includes an assessment of whether the losses incurred in the current period were expected at the date of the acquisition and assessing whether the remaining losses expected at the date of the acquisition will still be incurred. The element relating to market liquidity unwinds to the income statement over the estimated expected lives of the related assets (until 2014 for wholesale loans and 2018 for retail loans) although if an asset is written-off or suffers previously unexpected impairment then this element of the fair value will no longer be considered a timing difference (liquidity) but permanent (impairment). The fair value unwind in respect of impairment losses incurred was £512 million for the period ended 31 December 2013 (31 December 2012: £868 million). The fair value unwind in respect of loans and advances is expected to continue to decrease in future years as fixed-rate periods on mortgages expire, loans are repaid or written-off, and will reduce to zero over time.

Sheet p45
B1: Impaired loans and provisions
B3: Core
B4: At 31 December 2013 | D4: Loans and advances to customers | F4: Impaired loans | H4: Impaired loans as a % of closing advances | J4: Impairment provisions1 | L4: Impairment provisions as % of impaired loans2
D5: £m | F5: £m | H5: % | J5: £m | L5: %
B8: Retail
B9: Secured | D9: 299085 | F9: 4327 | H9: 1.446745908 | J9: 1158 | L9: 26.76219089
B10: Unsecured | D10: 21435 | F10: 1492 | H10: 6.960578493 | J10: 576 | L10: 87.14069592
D11: 320520 | F11: 5819 | H11: 1.815487333 | J11: 1734 | L11: 34.76343224
B13: Commercial Banking | D13: 111883 | F13: 5131 | H13: 4.586040775 | J13: 2441 | L13: 47.5735724
B15: Wealth, Asset Finance and International
B16: Wealth | D16: 3218 | F16: 349 | H16: 10.84524549 | J16: 70 | L16: 20.05730659
B17: Asset Finance | D17: 3392 | F17: 57 | H17: 1.680424528 | J17: 29 | L17: 50.87719298
D18: 6610 | F18: 406 | H18: 6.142208775 | J18: 99 | L18: 24.38423645
B20: Reverse repos and other items | D20: 2779 | F20: 0 | J20: 0
B21: Total core gross lending | D21: 441792 | F21: 11356 | H21: 2.570440388 | J21: 4274 | L21: 40.60807601
B22: Impairment provisions | D22: -4274
B23: Fair value adjustments | D23: -552
B24: Total core | D24: 436966
B27: At 31 December 2012
B30: Retail
B31: Secured | D31: 297902 | F31: 4793 | H31: 1.608918369 | J31: 1251 | L31: 26.10056332
B32: Unsecured | D32: 22156 | F32: 1900 | H32: 8.575555154 | J32: 706 | L32: 82.76670574
D33: 320058 | F33: 6693 | H33: 2.091183473 | J33: 1957 | L33: 34.6617074
B35: Commercial Banking | D35: 104867 | F35: 5907 | H35: 5.632849228 | J35: 2866 | L35: 48.51870662
B37: Wealth, Asset Finance and International
B38: Wealth | D38: 4325 | F38: 284 | H38: 6.566473988 | J38: 73 | L38: 25.70422535
B39: Asset Finance | D39: 1090 | F39: 67 | H39: 6.146788991 | J39: 12 | L39: 17.91044776
D40: 5415 | F40: 351 | H40: 6.483191725 | J40: 85 | L40: 24.21652422
B42: Reverse repos and other items | D42: 5814 | F42: 0 | J42: 0
B43: Total core gross lending | D43: 436154 | F43: 12951 | H43: 2.969364032 | J43: 4908 | L43: 41.22983871
B44: Impairment provisions | D44: -4908
B45: Fair value adjustments | D45: -778
B46: Total core | D46: 430468
A49: 1 | B49: Impairment provisions include collective unimpaired provisions.
A50: 2 | B50: Impairment provisions as a percentage of impaired loans are calculated excluding retail unsecured loans in recoveries (31 December 2013: £831 million, 31 December 2012: £1,047 million).

Sheet p46
B1: Impaired loans and provisions
B3: Non-core
B4: At 31 December 2013 | D4: Loans and advances to customers | F4: Impaired loans | H4: Impaired loans as a % of closing advances | J4: Impairment provisions1 | L4: Impairment provisions as % of impaired loans2
D5: £m | F5: £m | H5: % | J5: £m | L5: %
B8: Retail
B9: Secured | D9: 24022 | F9: 1314 | H9: 5.469985846 | J9: 314 | L9: 23.89649924
B10: Unsecured | D10: 131 | F10: 54 | H10: 41.22137405 | J10: 2 | L10: 50
D11: 24153 | F11: 1368 | H11: 5.663892684 | J11: 316 | L11: 23.97572079
B12: Commercial Banking
B13: Corporate Real Estate and other corporate3 | D13: 11571 | F13: 8131 | H13: 70.27050385 | J13: 3320 | L13: 40.83138605
B14: Specialist finance4 | D14: 9017 | F14: 1368 | H14: 15.17134302 | J14: 565 | L14: 41.30116959
B15: Other | D15: 131 | F15: 84 | H15: 64.1221374 | J15: 89
D16: 20719 | F16: 9583 | H16: 46.25223225 | J16: 3974 | L16: 41.4692685
B17: Wealth, Asset Finance and International
B18: Ireland | D18: 15374 | F18: 9324 | H18: 60.64784701 | J18: 6718 | L18: 72.05062205
B19: Other international | D19: 7146 | F19: 212 | H19: 2.966694654 | J19: 108 | L19: 50.94339623
B20: Asset finance | D20: 2320 | F20: 416 | H20: 17.93103448 | J20: 317 | L20: 76.20192308
D21: 24840 | F21: 9952 | H21: 40.06441224 | J21: 7143 | L21: 71.77451768
B22: Reverse repos and other items | D22: 0 | F22: 0 | J22: 0
B23: Total non-core gross lending | D23: 69712 | F23: 20903 | H23: 29.98479458 | J23: 11433 | L23: 54.82664365
B24: Impairment provisions | D24: -11433
B25: Fair value adjustments3 | D25: 36
B26: Total non-core | D26: 58315
B29: At 31 December 2012
B31: Retail
B32: Secured | D32: 25960 | F32: 1528 | H32: 5.885978428 | J32: 365 | L32: 23.88743455
B33: Unsecured | D33: 542 | F33: 99 | H33: 18.26568266 | J33: 13 | L33: 76.47058824
D34: 26502 | F34: 1627 | H34: 6.139159309 | J34: 378 | L34: 24.46601942
B35: Commercial Banking
B36: Corporate Real Estate and other corporate3 | D36: 21777 | F36: 14447 | H36: 66.34063461 | J36: 5411 | L36: 37.45414273
B37: Specialist finance4 | D37: 15488 | F37: 2935 | H37: 18.95015496 | J37: 1235 | L37: 42.07836457
B38: Other | D38: 2638 | F38: 676 | H38: 25.62547384 | J38: 472 | L38: 69.82248521
D39: 39903 | F39: 18058 | H39: 45.25474275 | J39: 7118 | L39: 39.41743272
B40: Wealth, Asset Finance and International
B41: Wealth | D41: 0 | F41: 0 | J41: 0
B42: Ireland | D42: 19531 | F42: 12501 | H42: 64.00593928 | J42: 8574 | L42: 68.58651308
B43: Other international | D43: 9171 | F43: 299 | H43: 3.26027696 | J43: 212 | L43: 70.90301003
B44: Asset Finance | D44: 8810 | F44: 857 | H44: 9.727582293 | J44: 582 | L44: 67.91131855
D45: 37512 | F45: 13657 | H45: 36.40701642 | J45: 9368 | L45: 68.59485978
B46: Reverse repos and other items | D46: 0 | F46: 0 | J46: 0
B47: Total gross lending | D47: 103917 | F47: 33342 | H47: 32.08522186 | J47: 16864 | L47: 50.70354781
B48: Impairment provisions | D48: -16864
B49: Fair value adjustments | D49: -296
B50: Total non-core | D50: 86757
A52: 1 | B52: Impairment provisions include collective unimpaired provisions.
A53: 2 | B53: Impairment provisions as a percentage of impaired loans are calculated excluding Retail unsecured loans in recoveries (31 December 2013: £50 million, 31 December 2012: £82 million).
A54: 3 | B54: Includes the Corporate Real Estate BSU portfolio which is now managed with other Corporate (including non-core good book Corporate Real Estate) assets which were previously disclosed in Other.
A55: 4 | B55: Includes the specialised lending portfolio which is now managed with their Specialised Finance assets which were previously disclosed in Other.

Sheet p47
B1: CREDIT RISK PORTFOLIO (continued)
P4: At | R4: At
P5: 31 Dec | R5: 31 Dec 2012
P6: 2013
P7: £m | R7: £m
B9: Secured:
B10: Mainstream | P10: 246586 | R10: 248735
B11: Buy to let | P11: 52791 | R11: 49568
B12: Specialist | P12: 23730 | R12: 25559
P13: 323107 | R13: 323862
B14: Unsecured:
B15: Credit cards | P15: 9373 | R15: 9465
B16: Personal loans | P16: 9595 | R16: 10523
B17: Bank accounts | P17: 2598 | R17: 2710
P18: 21566 | R18: 22698
B19: Total gross lending | P19: 344673 | R19: 346560

Sheet p48
B1: CREDIT RISK PORTFOLIO (continued)
B3: Mortgages greater than three months in arrears (excluding repossessions)
D5: Number of cases | H5: Total mortgage accounts % | L5: Value of loans1 | P5: Total mortgage balances %
D6: 2013 | F6: 2012 | H6: 2013 | J6: 2012 | L6: 2013 | N6: 2012 | O6: 2013 | R6: 2012 | AH6: 2012
D7: Cases | F7: Cases | H7: % | J7: % | L7: £m | N7: £m | P7: % | R7: %
B9: Mainstream | D9: 52687 | F9: 55905 | H9: 2.1 | J9: 2.2 | L9: 5898 | N9: 6287 | P9: 2.4 | R9: 2.5 | AH9: 2.5
B10: Buy to let | D10: 6338 | F10: 7306 | H10: 1.3 | J10: 1.6 | L10: 869 | N10: 1033 | P10: 1.6 | R10: 2.1 | AH10: 2.1
B11: Specialist | D11: 11870 | F11: 13262 | H11: 7.3 | J11: 7.6 | L11: 2051 | N11: 2317 | P11: 8.6 | R11: 9.1 | AH11: 9.1
B12: Total | D12: 70895 | F12: 76473 | H12: 2.3 | J12: 2.4 | L12: 8818 | N12: 9637 | P12: 2.7 | R12: 3 | AH12: 3
A14: 1 | B14: Value of debt represents total book value of mortgages in arrears.
B18: Actual and average LTVs across the Retail mortgage portfolios
B20: At 31 December 2013 | L20: Mainstream | N20: Buy to let | P20: Specialist1 | R20: Total
L21: % | N21: % | P21: % | R21: %
B23: Less than 60% | L23: 37 | N23: 20.4 | P23: 20.1 | R23: 33.1
B24: 60% to 70% | L24: 16.9 | N24: 21.3 | P24: 15.7 | R24: 17.5
B25: 70% to 80% | L25: 19.8 | N25: 26 | P25: 19.3 | R25: 20.8
B26: 80% to 90% | L26: 14.7 | N26: 15.1 | P26: 20.1 | R26: 15.1
B27: 90% to 100% | L27: 7.1 | N27: 11.1 | P27: 14.3 | R27: 8.3
B28: Greater than 100% | L28: 4.5 | N28: 6.1 | P28: 10.5 | R28: 5.2
B29: Total | L29: 100 | N29: 100 | P29: 100 | R29: 100
B30: Average loan to value:2
B31: Stock of residential mortgages | L31: 49.5 | N31: 66.9 | P31: 66.2 | R31: 52.8
B32: New residential lending | L32: 63.6 | N32: 64 | P32: n/a | R32: 63.6
B33: Impaired mortgages | L33: 66.6 | N33: 90.1 | P33: 80.8 | R33: 71.6
B35: At 31 December 2012 | L35: Mainstream | N35: Buy to let | P35: Specialist1 | R35: Total
L36: % | N36: % | P36: % | R36: %
B38: Less than 60% | L38: 31.9 | N38: 12.8 | P38: 14.7 | R38: 27.6
B39: 60% to 70% | L39: 12.8 | N39: 12.9 | P39: 9.7 | R39: 12.6
B40: 70% to 80% | L40: 18.3 | N40: 26.2 | P40: 17.2 | R40: 19.4
B41: 80% to 90% | L41: 16.6 | N41: 16.5 | P41: 19.1 | R41: 16.8
B42: 90% to 100% | L42: 10.5 | N42: 15.4 | P42: 18.5 | R42: 11.9
B43: Greater than 100% | L43: 9.9 | N43: 16.2 | P43: 20.8 | R43: 11.7
B44: Total | L44: 100 | N44: 100 | P44: 100 | R44: 100
B45: Average loan to value:2
B46: Stock of residential mortgages | L46: 52.7 | N46: 73.6 | P46: 72.6 | R46: 56.4
B47: New residential lending | L47: 62.3 | N47: 64.5 | P47: n/a | R47: 62.6
B48: Impaired mortgages | L48: 72.2 | N48: 99.3 | P48: 88.1 | R48: 78.3
A50: 1 | B50: Specialist lending is closed to new business and is in run-off.
A51: 2 | B51: Average loan to value is calculated as total loans and advances as a percentage of the total collateral of these loans and advances.

Sheet p50
B1: CREDIT RISK PORTFOLIO (continued)
B2: Forbearance
B3: Retail (continued)
B4: Secured lending | D4: Total loans and advances which are currently or recently forborne | H4: Total current and recent forborne loans and advances which are impaired1 | L4: Impairment provisions as % of loans and advances which are currently or recently forborne
B6: At 31 December
D7: 2013 | F7: 2012 2 | H7: 2013 | J7: 2012 2 | L7: 2013 | N7: 2012 2
D8: £m | F8: £m | H8: £m | J8: £m | L8: % | N8: %
B10: Temporary forbearance arrangements
B11: Reduced contractual monthly payment3 | D11: 995 | F11: 4514 | H11: 226 | J11: 538 | L11: 4 | N11: 2.5
B12: Reduced payment arrangements4 | D12: 1376 | F12: 1412 | H12: 160 | J12: 320 | L12: 3.2 | N12: 4
D13: 2371 | F13: 5926 | H13: 386 | J13: 858 | L13: 3.5 | N13: 2.8
B14: Permanent treatments
B15: Repair and term extentions5 | D15: 4008 | F15: 3565 | H15: 305 | J15: 289 | L15: 3.4 | N15: 3.9
B16: Total | D16: 6379 | F16: 9491 | H16: 691 | J16: 1147 | L16: 3.4 | N16: 3.2
B18: Included in the total above:
B19: Temporary arrangements currently on treatment | D19: 1100 | F19: 3103 | H19: 179 | J19: 516 | L19: 3.4 | N19: 3.7
B20: Permanent treatments within last 12 months | D20: 2187 | F20: 1913 | H20: 78 | J20: 90 | L20: 3.1 | N20: 4.3
A22: 1 | B22: £5,688 million of current and recent forborne loans and advances were not impaired at 31 December 2013 (31 December 2012: £8,344 million).
A23: 2 | B23: Restated to reflect the change in forbearance probation periods. Previously only temporary arrangements in place at the year end and permanent changes commenced during the year were shown.
A24: 3 | B24: Includes temporary interest only arrangements and short-term payment holidays granted in collections where the customer is currently benefitting from the treatment and where the concession has ended within the previous six months (temporary interest only) and previous 12 months (short-term payment holidays).
A25: 4 | B25: Includes customers who had an arrangement to pay less than the contractual amount at 31 December or where an arrangement ended within the previous three months.
A26: 5 | B26: Includes capitalisation of arrears and term extensions which commenced during the previous 24 months and remaining as customers at the year end.

Sheet p51
B1: CREDIT RISK PORTFOLIO (continued)
B3: Retail (continued)
B4: Unsecured lending | D4: Total loans and advances which are currently or recently forborne | H4: Total current and recent forborne loans and advances which are impaired1 | L4: Impairment provisions as % of loans and advances which are currently or recently forborne
B6: At 31 December
D7: 2013 | F7: 2012 2 | H7: 2013 | J7: 2012 2 | L7: 2013 | N7: 2012 2
D8: £m | F8: £m | H8: £m | J8: £m | L8: £m | N8: £m
B10: Temporary forbearance arrangements
B11: Reduced contractual monthly payment3 | D11: 260 | F11: 339 | H11: 230 | J11: 324 | L11: 39.2 | N11: 48.8
B12: Reduced payment arrangements4 | D12: 104 | F12: 194 | H12: 86 | J12: 150 | L12: 51.7 | N12: 49.3
D13: 364 | F13: 533 | H13: 316 | J13: 474 | L13: 42.8 | N13: 49
B14: Permanent treatments
B15: Repair and Term Extentions5 | D15: 201 | F15: 350 | H15: 79 | J15: 176 | L15: 9.9 | N15: 10.4
B16: Total | D16: 565 | F16: 883 | H16: 395 | J16: 650 | L16: 31.1 | N16: 33.7
B18: Included in the total above:
B19: Temporary arrangements currently on treatment | D19: 265 | F19: 388 | H19: 262 | J19: 383 | L19: 45 | N19: 51.6
B20: Permanent treatments within last 12 months | D20: 90 | F20: 208 | H20: 38 | J20: 110 | L20: 13.2 | N20: 11.8
A23: 1 | B23: £170 million of current and recent forborne loans and advances were not impaired at 31 December 2013 (31 December 2012: £233 million).
A24: 2 | B24: Restated to reflect the change in forbearance probation periods. Previously only temporary arrangements in place at the year end and permanent changes commenced during the year were shown.
A25: 3 | B25: Includes repayment plans and short-term payment holidays granted in collections where the customer is currently benefitting from the treatment and where the concession has ended within the previous six months.
A26: 4 | B26: Includes customers who had an arrangement to pay less than the contractual amount at 31 December or where an arrangement ended within the previous six months.
A27: 5 | B27: Includes capitalisation of arrears and term extensions which commenced during the previous 24 months and remaining as customers at the year end.

Sheet p56
B1: CREDIT RISK PORTFOLIO (continued)
B3: Commercial Banking
B5: LTVs - UK Direct Real Eastate
C7: Core loans and advances | G7: Non-core loans and advances
B8: At 31 December 2013 | C8: (gross) | G8: (gross)
C9: £m | E9: % | G9: £m | I9: %
B10: Exposures > £5 million:
B11: Less than 60% | C11: 4444 | E11: 42 | G11: 437 | I11: 7
B12: 61% to 70% | C12: 2182 | E12: 21 | G12: 268 | I12: 4
B13: 71% to 80% | C13: 1159 | E13: 11 | G13: 145 | I13: 2
B14: 81% to 100% | C14: 407 | E14: 4 | G14: 1896 | I14: 29
B15: 101% to 125% | C15: 385 | E15: 4 | G15: 766 | I15: 12
B16: More than 125% | C16: 571 | E16: 5 | G16: 2961 | I16: 46
B17: Unsecured | C17: 1342 | E17: 13 | G17: 23 | I17: 0
C18: =SUM(C11:C17) -> 10490 | E18: 100 | G18: =SUM(G11:G17) -> 6496 | I18: 100
B19: Exposures < £5 million | C19: 9280 | G19: 1143
B20: Total | C20: =SUM(C18:C19) -> 19770 | G20: =SUM(G18:G19) -> 7639
B23: At 31 December 20121
B25: Exposures > £5 million:
B26: Less than 60% | C26: 3722 | E26: 35 | G26: 703 | I26: 7
B27: 61% to 70% | C27: 1785 | E27: 17 | G27: 292 | I27: 3
B28: 71% to 80% | C28: 2028 | E28: 19 | G28: 886 | I28: 9
B29: 81% to 100% | C29: 1282 | E29: 12 | G29: 2188 | I29: 21
B30: 101% to 125% | C30: 393 | E30: 4 | G30: 1398 | I30: 14
B31: More than 125% | C31: 563 | E31: 5 | G31: 4405 | I31: 43
B32: Unsecured | C32: 849 | E32: 8 | G32: 332 | I32: 3
C33: =SUM(C26:C32) -> 10622 | E33: 100 | G33: =SUM(G26:G32) -> 10204 | I33: 100
B34: Exposures < £5 million | C34: 8976 | G34: 1727
B35: Total | C35: =SUM(C33:C34) -> 19598 | G35: =SUM(G33:G34) -> 11931
A37: 1 | B37: Restated to reflect a change in methodology from registered address of borrower to location of underlying collateral.

Sheet p59
B1: CREDIT RISK PORTFOLIO (continued)
B3: Commercial Banking (continued)
D5: Total loans and advances which are forborne | H5: Impairment provisions as % of loans and advances which are forborne
B7: At 31 December
D8: 2013 | F8: 2012 | H8: 2013 | J8: 2012
D9: £m | F9: £m | H9: £m | J9: £m
B11: Impaired | D11: 14714 | F11: 23965 | H11: 43.6 | J11: 41.7
B12: Unimpaired | D12: 6221 | F12: 9027 | H12: 0 | J12: 0
B13: Total | D13: 20935 | F13: 32992 | H13: 30.6 | J13: 30.3
F19: Direct Real Estate | H19: Other industry sector | J19: Toal
B20: At 31 December 2013 | F20: £m | H20: £m | J20: £m
B22: Type of unimpaired forbearance
B23: UK1 Exposures > £5 million
B24: Covenants | F24: 1555 | H24: 842 | J24: 2397
B25: Extensions | F25: 200 | H25: 343 | J25: 543
B26: Multiple | F26: 23 | H26: 380 | J26: 403
F27: 1778 | H27: 1565 | J27: 3343
B28: Exposures <£5 million and other non-UK1 | J28: 2878
B29: Total | J29: 6221
A31: 1 | B31: Based on location of the office recording the transaction

Sheet p60
B1: CREDIT RISK PORTFOLIO (continued)
B3: Ireland impairment charge
H4: 2013 | J4: 2012 | L4: Change
H5: £m | J5: £m | L5: %
B6: Retail | H6: -26 | J6: 108
B7: Commercial real estate | H7: 219 | J7: 739 | L7: 70.36535859
B8: Corporate | H8: 415 | J8: 398 | L8: -4.271356784
B9: Toal | H9: 608 | J9: 1245 | L9: 51.16465863

Sheet p61
B1: CREDIT RISK PORTFOLIO (continued)
B3: Ireland impaired loans and provisions
D5: Loans and advances to customers | F5: Impaired loans | H5: Impaired loans as % of closing advances | J5: Impairment provisions | L5: Impairment provisions as a % of impaired loans
B6: At 31 December 2013 | D6: £m | F6: £m | H6: % | J6: £m | L6: %
B8: Retail | D8: 5944 | F8: 1002 | H8: 16.85733513 | J8: 638 | L8: 63.67265469
B9: Commercial real estate | D9: 5512 | F9: 5087 | H9: 92.28955007 | J9: 3775 | L9: 74.20876745
B10: Corporate | D10: 3918 | F10: 3235 | H10: 82.56763655 | J10: 2305 | L10: 71.25193199
B11: Toal | D11: 15374 | F11: 9324 | H11: 60.64784701 | J11: 6718 | L11: 72.05062205
B13: At 31 December 2012
B15: Retail | D15: 6656 | F15: 1534 | H15: 23.046875 | J15: 1111 | L15: 72.42503259
B16: Commercial real estate | D16: 7408 | F16: 6720 | H16: 90.71274298 | J16: 4695 | L16: 69.86607143
B17: Corporate | D17: 5467 | F17: 4247 | H17: 77.68428754 | J17: 2768 | L17: 65.17541794
B18: Toal | D18: 19531 | F18: 12501 | H18: 64.00593928 | J18: 8574 | L18: 68.58651308
D22: At 31 December 2013 | H22: At 31 December 2012
D23: £m | F23: % | H23: £m | J23: %
B24: Exposures > £5 million:
B25: Less than 60% | D25: 84 | F25: 2 | H25: 119 | J25: 2
B26: 61% to 70% | D26: 11 | F26: 0 | H26: 20 | J26: 0
B27: 71% to 80% | D27: 15 | F27: 0 | H27: 27 | J27: 0
B28: 81% to 100% | D28: 88 | F28: 2 | H28: 165 | J28: 3
B29: 101% to 125% | D29: 81 | F29: 2 | H29: 182 | J29: 3
B30: More than 125% | D30: 3555 | F30: 83 | H30: 4927 | J30: 81
B31: Unsecured | D31: 440 | F31: 11 | H31: 674 | J31: 11
D32: 4274 | F32: 100 | H32: 6114 | J32: 100
B33: Exposures < £5 million | D33: 1238 | H33: 1294
B34: Total | D34: 5512 | H34: 7408

Sheet p63
B1: CREDIT RISK PORTFOLIO (continued)
B2: Forbearance
B3: Wealth, Asset Finance and International
B4: Secured retail lending - Ireland | D4: Total loans and advances which are currently or recently forborne | H4: Total current and recent forborne loans and advances which are impaired1 | L4: Impairment provisions as % of loans and advances which are currently or recently forborne
B6: At 31 December
D7: 2013 | F7: 2012 | H7: 2013 | J7: 2012 | L7: 2013 | N7: 2012
D8: £m | F8: £m | H8: £m | J8: £m | L8: £m | N8: £m
B10: Temporary forbearance arrangements
B11: Reduced contractual monthly payment | D11: 0 | F11: 0 | H11: 0 | J11: 0 | L11: 0 | N11: 0
B12: Reduced payment arrangements3 | D12: 254 | F12: 385 | H12: 227 | J12: 336 | L12: 49.8 | N12: 45.2
D13: 254 | F13: 385 | H13: 227 | J13: 336 | L13: 49.8 | N13: 45.2
B14: Permanent treatments
B15: Repair and Term Extentions4 | D15: 473 | F15: 430 | H15: 102 | J15: 71 | L15: 14.4 | N15: 27.9
B16: Total | D16: 727 | F16: 815 | H16: 329 | J16: 407 | L16: 26.7 | N16: 36.1
B19: Included in the total above:
B20: Temporary arrangements currently on treatment | D20: 224 | F20: 300 | H20: 43 | J20: 32 | L20: 13.9 | N20: 30.1
B21: Permanent treatments within last 12 months | D21: 196 | F21: 272 | H21: 174 | J21: 232 | L21: 50 | N21: 44.5
A24: 1 | B24: £398 million of current and recent forborne loans and advances were not impaired at 31 December 2013 (31 December 2012: £408 million).
A25: 2 | B25: The 2012 numbers have been restated to reflect the change in forbearance probation periods. Previously only temporary arrangements in place at the year end and permanent changes commenced during the year were shown.
A26: 3 | B26: Includes customers who had an arrangement to pay less than the contractual amount at 31 December or where an arrangement ended within the previous three months.
A27: 4 | B27: Includes capitalisation of arrears and term extensions which commenced during the previous 24 months and remaining as customers at the year end.

Sheet p64
B1: CREDIT RISK PORTFOLIO (continued)
B2: Forbearance
B3: Asset Finance retail lending | C3: Total loans and advances which are forborne | G3: Total forborne loans and advances which are impaired1 | K3: Impairment provisions as % of loans and advances which are forborne
B6: At 31 December
C7: 2013 | E7: 2012 | G7: 2013 | I7: 2012 | K7: 2013 | M7: 2012
C8: £m | E8: £m | G8: £m | I8: £m | K8: % | M8: %
B10: Reduced contractual monthly payment | C10: 209 | E10: 328 | G10: 192 | I10: 301 | K10: 62.8 | M10: 58
B11: Reduced payment arrangements | C11: 63 | E11: 112 | G11: 56 | I11: 102 | K11: 24.9 | M11: 24.8
B12: Repair | C12: 5 | E12: 7 | G12: 1 | I12: 2 | K12: 2.3 | M12: 1.6
B13: Total | C13: 277 | E13: 447 | G13: 249 | I13: 405 | K13: 53.2 | M13: 48.8
A15: 1 | B15: £28 million of forborne loans and advances were not impaired at 31 December 2013 (31 December 2012: £42 million).
B17: Ireland wholesale | G17: Total loans and advances which are forborne | K17: Impairment provisions as % of loans and advances which are forborne
B19: At 31 December
G20: 2013 | I20: 2012 | K20: 2013 | M20: 2012
G21: £m | I21: £m | K21: % | M21: %
B23: Impaired | G23: 8322 | I23: 10967 | K23: 73.1 | M23: 68
B24: Unimpaired | G24: 1108 | I24: 1908 | K24: 0 | M24: 0
B25: Total | G25: 9430 | I25: 12875 | K25: 64.4 | M25: 58

Sheet p66
B1: FUNDING AND LIQUIDITY MANAGEMENT
B3: Group funding position
D4: At | F4: At | H4: Change
D5: 31 Dec | F5: 31 Dec
D6: 2013 | F6: 2012 1
D7: £bn | F7: £bn | H7: %
B9: Funding requirement
B10: Loans and advances to customers2 | D10: 495.2 | F10: 512.1 | H10: -3.300136692
B11: Loans and advances to banks3 | D11: 5.1 | F11: 12.5 | H11: -59.2
B12: Debt securities | D12: 1.4 | F12: 5.3 | H12: -73.58490566
B13: Reverse repurchase agreements | D13: 0.2 | F13: 0
B14: Available-for-sale financial assets – secondary4 | D14: 4.4 | F14: 5.3 | H14: -16.98113208
B15: Cash balances5 | D15: 3.9 | F15: 3.5 | H15: 11.42857143
B16: Funded assets | D16: 510.2 | F16: 538.7 | H16: -5.290514201
B17: Other assets6 | D17: 248.6 | F17: 302.2 | H17: -17.73659828
D18: 758.8 | F18: 840.9 | H18: -9.763348793
B19: On balance sheet primary liquidity assets7
B20: Reverse repurchase agreements | D20: 0.1 | F20: 5.8 | H20: -98.27586207
B21: Balances at central banks – primary5 | D21: 46 | F21: 76.8 | H21: -40.10416667
B22: Available-for-sale financial assets – primary | D22: 39.6 | F22: 26.1 | H22: 51.72413793
B23: Trading and fair value through profit and loss | D23: 3.1 | F23: -9.4
B24: Repurchase agreements | D24: -0.6 | F24: -5.9 | H24: -89.83050847
D25: 88.2 | F25: 93.4 | H25: -5.56745182
B26: Total Group assets | D26: 847 | F26: 934.3 | H26: -9.343893824
B27: Less: Other liabilities6 | D27: -227.5 | F27: -277.8 | H27: -18.10655148
B28: Funding requirement | D28: 619.5 | F28: 656.5 | H28: -5.63594821
B29: Funded by
B30: Customer deposits8 | D30: 438.3 | F30: 422.5 | H30: 3.73964497
B31: Wholesale funding9 | D31: 137.6 | F31: 169.6 | H31: -18.86792453
D32: 575.9 | F32: 592.1 | H32: -2.73602432
B33: Repurchase agreements | D33: 4.3 | F33: 21.8 | H33: -80.27522936
B34: Total equity | D34: 39.3 | F34: 42.6 | H34: -7.746478873
B35: Total funding | D35: 619.5 | F35: 656.5 | H35: -5.63594821
A37: 1 | B37: Restated to reflect the implementation of IAS 19R and IFRS 10. See page 123.
A38: 2 | B38: Excludes £0.1 billion (31 December 2012: £5.1 billion) of reverse repurchase agreements.
A39: 3 | B39: Excludes £20.1 billion (31 December 2012: £19.6 billion) of loans and advances to banks within the Insurance business and £0.2 billion (31 December 2012: £0.7 billion) of reverse repurchase agreements.
A40: 4 | B40: Secondary liquidity assets comprise a diversified pool of highly rated unencumbered collateral (including retained issuance).
A41: 5 | B41: Cash balances and balances at central banks – primary are combined in the Group’s balance sheet.
A42: 6 | B42: Other assets and other liabilities primarily include balances in the Group’s Insurance business and the fair value of derivative assets and liabilities.
A43: 7 | B43: Primary liquidity assets are PRA eligible liquid assets including UK Gilts, US Treasuries, Euro AAA government debt and unencumbered cash balances held at central banks.
A44: 8 | B44: Excluding repurchase agreements of £3.0 billion (31 December 2012: £4.4 billion).
A45: 9 | B45: The Group’s definition of wholesale funding aligns with that used by other international market participants; including interbank deposits, debt securities in issue and subordinated liabilities.

Sheet p67
B1: FUNDING AND LIQUIDITY MANAGEMENT(continued)
B3: Reconciliation of Group funding figure to the balance sheet
B4: At 31 December 2013
D6: Included in funding analysis (above) | F6: Repos | H6: Fair value and other accounting methods | J6: Balance sheet
D7: £bn | F7: £bn | H7: £bn | J7: £bn
B9: Deposits from banks | D9: 12.1 | F9: 1.9 | H9: 0 | J9: 14
B10: Debt securities in issue | D10: 91.6 | F10: 0 | H10: -4.5 | J10: 87.1
B11: Subordinated liabilities | D11: 33.9 | F11: 0 | H11: -1.6 | J11: 32.3
B12: Total wholesale funding | D12: 137.6 | F12: 1.9
B13: Customer deposits | D13: 438.3 | F13: 3 | H13: 0 | J13: 441.3
B14: Total | D14: 575.9 | F14: 4.9
B16: At 31 December 20121
D17: Included in funding analysis (above) | F17: Repos | H17: Fair value and other accounting methods | J17: Balance sheet
D18: £bn | F18: £bn | H18: £bn | J18: £bn
B20: Deposits from banks | D20: 15.1 | F20: 23.3 | H20: 0 | J20: 38.4
B21: Debt securities in issue | D21: 120.4 | F21: 0 | H21: -3.1 | J21: 117.3
B22: Subordinated liabilities | D22: 34.1 | F22: 0 | H22: 0 | J22: 34.1
B23: Total wholesale funding | D23: 169.6 | F23: 23.3
B24: Customer deposits | D24: 422.5 | F24: 4.4 | H24: 0 | J24: 426.9
B25: Total | D25: 592.1 | F25: 27.7
A27: 1 | B27: Restated to reflect the implementation of IAS 19R and IFRS 10. See page 123.
D32: Less than one month | F32: One to three months | H32: Three to six months | J32: Six to nine months | L32: Nine months to one year | N32: One to two years | P32: Two to five years | R32: More than five years | T32: Total at 31 Dec 2013 | V32: Total at 31 Dec 2012
D33: £bn | F33: £bn | H33: £bn | J33: £bn | L33: £bn | N33: £bn | P33: £bn | R33: £bn | T33: £bn | V33: £bn
B35: Deposit from banks | D35: 9.5 | F35: 0.6 | H35: 0.3 | J35: 0 | L35: 0.7 | N35: 0.3 | P35: 0.2 | R35: 0.5 | T35: 12.1 | V35: 15.1
B36: Debt securities in issue:
B37: Certificates of deposit | D37: 1 | F37: 3.4 | H37: 2.4 | J37: 1.3 | L37: 0.9 | N37: 0 | P37: 0 | R37: 0 | T37: 9 | V37: 10.7
B38: Commercial paper | D38: 2.3 | F38: 2 | H38: 0.4 | J38: 0 | L38: 0.1 | N38: 0 | P38: 0 | R38: 0 | T38: 4.8 | V38: 7.9
B39: Medium-term notes1 | D39: 0.8 | F39: 0.4 | H39: 1.8 | J39: 0.1 | L39: 2.2 | N39: 5.7 | P39: 9.5 | R39: 8.6 | T39: 29.1 | V39: 34.6
B40: Covered bonds | D40: 0.9 | F40: 0 | H40: 0.7 | J40: 0 | L40: 3 | N40: 3.3 | P40: 8.8 | R40: 12.7 | T40: 29.4 | V40: 38.7
B41: Securitisation | D41: 2.8 | F41: 0 | H41: 0.9 | J41: 0 | L41: 3.3 | N41: 7.7 | P41: 4.6 | R41: 0 | T41: 19.3 | V41: 28.5
D42: 7.8 | F42: 5.8 | H42: 6.2 | J42: 1.4 | L42: 9.5 | N42: 16.7 | P42: 22.9 | R42: 21.3 | T42: 91.6 | V42: 120.4
B43: Subordinated liabilities | D43: 0.3 | F43: 0.3 | H43: 0.6 | J43: 0.6 | L43: 0.6 | N43: 3.3 | P43: 5.9 | R43: 22.3 | T43: 33.9 | V43: 34.1
B44: Total wholesale funding2 | D44: 17.6 | F44: 6.7 | H44: 7.1 | J44: 2 | L44: 10.8 | N44: 20.3 | P44: 29 | R44: 44.1 | T44: 137.6 | V44: 169.6
A46: 1 | B46: Medium-term notes include funding from the National Guarantee Scheme (31 December 2013: £1.4 billion; 31 December 2012: £1.4 billion).
A47: 2 | B47: The Group’s definition of wholesale funding aligns with that used by other international market participants; including interbank deposits, debt securities in issue and subordinated liabilities.

Sheet p68
B1: FUNDING AND LIQUIDITY MANAGEMENT(continued)
B3: Analysis of 2013 term issuance
D5: Sterling | F5: US Dollar | H5: Euro | J5: Other currencies | L5: Total
D6: £bn | F6: £bn | H6: £bn | J6: £bn | L6: £bn
B8: Securitisation | D8: 0 | F8: 0.5 | H8: 0 | J8: 0 | L8: =SUM(D8:K8) -> 0.5
B9: Medium-term notes | D9: 0 | F9: 0.6 | H9: 1.3 | J9: 0 | L9: =SUM(D9:K9) -> 1.9
B10: Private placements1 | D10: 0.1 | F10: 0.4 | H10: 1.3 | J10: 0.1 | L10: =SUM(D10:K10) -> 1.9
B11: Total issuance | D11: 0.1 | F11: 1.5 | H11: 2.6 | J11: 0.1 | L11: =SUM(D11:K11) -> 4.3
A14: 1 | B14: Private placements include structured bonds and term repurchase agreements (repos).

Sheet p69
B1: FUNDING AND LIQUIDITY MANAGEMENT(continued)
B3: Primary liquidity
D4: At 31 Dec | F4: At 31 Dec | H4: Average | J4: Average
D5: 2013 | F5: 2012 | H5: 2013 | J5: 2012
D6: £bn | F6: £bn | H6: £bn | J6: £bn
B8: Central bank cash deposits | D8: 46 | F8: 76.8 | H8: 69.4 | J8: 78.3
B9: Government bonds | D9: 43.3 | F9: 10.8 | H9: 28.2 | J9: 21.1
B10: Total | D10: 89.3 | F10: 87.6 | H10: 97.6 | J10: 99.4
B12: Secondary liquidity
D13: At 31 Dec | F13: 31 Dec | H13: Average | J13: Average
D14: 2013 | F14: 2012 | H14: 2013 | J14: 2012
D15: £bn | F15: £bn | H15: £bn | J15: £bn
B17: High-quality ABS/covered bonds1 | D17: 1.4 | F17: 2.8 | H17: 2 | J17: 2.1
B18: Credit institution bonds1 | D18: 0.4 | F18: 3.4 | H18: 1.2 | J18: 2.8
B19: Corporate bonds1 | D19: 0.1 | F19: 0.1 | H19: 0.1 | J19: 0.1
B20: Own securities (retained issuance) | D20: 22.1 | F20: 44.9 | H20: 33.3 | J20: 50.2
B21: Other securities | D21: 4.3 | F21: 5 | H21: 4.8 | J21: 8.3
B22: Other2 | D22: 77.1 | F22: 60.9 | H22: 75.2 | J22: 49.8
B23: Total | D23: 105.4 | F23: 117.1 | H23: 116.6 | J23: 113.3
B25: Total liquidity | D25: 194.7 | F25: 204.7
A27: 1 | B27: Assets rated A- or above.
A28: 2 | B28: Includes other central bank eligible assets.

Sheet p71
B1: CAPITAL MANAGEMENT (continued)
B3: Capital resources | E3: At | G3: At
E4: 31 Dec | G4: 31 Dec
E5: 2013 | G5: 2012 2
E6: £m | G6: £m
B8: Core tier 1
B9: Shareholders’ equity per balance sheet | E9: 38989 | G9: 43999
B10: Non-controlling interests per balance sheet | E10: 347 | G10: 685
B11: Regulatory adjustments:
B12: Regulatory adjustments to non-controlling interests | E12: -315 | G12: -628
B13: Adjustment for own credit | E13: 185 | G13: 217
B14: Defined benefit pension adjustment | E14: -78 | G14: -1438
B15: Unrealised reserve on available-for-sale debt securities | E15: 750 | G15: -343
B16: Unrealised reserve on available-for-sale equity investments | E16: -135 | G16: -56
B17: Cash flow hedging reserve | E17: 1055 | G17: -350
B18: Other items | E18: 452 | G18: 33
E19: 41250 | G19: 42119
B20: Less: deductions from core tier 1
B21: Goodwill | E21: -2016 | G21: -2016
B22: Intangible assets | E22: -1799 | G22: -2091
B23: 50 per cent excess of expected losses over impairment provisions | E23: -373 | G23: -636
B24: 50 per cent of securitisation positions | E24: -71 | G24: -183
B25: Core tier 1 capital | E25: 36991 | G25: 37193
B26: Non-controlling preference shares1 | E26: 1060 | G26: 1568
B27: Preferred securities1 | E27: 3982 | G27: 4039
B28: Less: deductions from tier 1
B29: 50 per cent of material holdings | E29: -3859 | G29: -46
B30: Total tier 1 capital | E30: 38174 | G30: 42754
B32: Tier 2
B33: Undated subordinated debt | E33: 1825 | G33: 1828
B34: Dated subordinated debt | E34: 18567 | G34: 19886
B35: Unrealised gains on available-for-sale equity investments provisions | E35: 135 | G35: 56
B36: Eligible provisions | E36: 359 | G36: 977
B37: Less: deductions from tier 2
B38: 50 per cent excess of expected losses over impairment | E38: -373 | G38: -636
B39: 50 per cent of securitisation positions | E39: -71 | G39: -183
B40: 50 per cent of material holdings | E40: -3859 | G40: -46
B41: Total tier 2 capital | E41: 16583 | G41: 21882
B43: Supervisory deductions
B44: Unconsolidated investments – life | E44: 0 | G44: -10104
B45: – general insurance and other | E45: 0 | G45: -929
B46: Total supervisory deductions | E46: 0 | G46: -11033
B47: Total capital resources | E47: 54757 | G47: 53603
B49: Risk-weighted assets | E49: 263850 | G49: 310299
B50: Core tier 1 capital ratio | E50: 0.14 | G50: 12.0%
B51: Tier 1 capital ratio | E51: 0.145 | G51: 13.8%
B52: Total capital ratio | E52: 0.208 | G52: 17.3%
A54: 1 | B54: Covered by existing grandfathering provisions.
A55: 2 | B55: 31 December 2012 comparatives have not been restated to reflect the implementation of IAS 19R and IFRS 10.

Sheet p72
B1: CAPITAL MANAGEMENT (continued)
B3: Movements in capital
D4: Core tier 1 | F4: Tier 1 | H4: Tier 2 | J4: Supervisory Deductions | L4: Total capital
D5: £m | F5: £m | H5: £m | J5: £m | L5: £m
B7: At 31 December 20121 | D7: 37193 | F7: 5561 | H7: 21882 | J7: -11033 | L7: 53603
B8: Loss attributable to ordinary shareholders | D8: -838 | F8: 0 | H8: 0 | J8: 0 | L8: -838
B9: Share issuance | D9: 510 | F9: 0 | H9: 0 | J9: 0 | L9: 510
B10: Pension movements:
B11: Implementation of IAS 19R2 | D11: -1258 | L11: -1258
B12: Deduction of pension asset | D12: 515 | F12: 0 | H12: 0 | J12: 0 | L12: 515
B13: Movement through other comprehensive income | D13: -108 | F13: 0 | H13: 0 | L13: -108
B14: Goodwill and intangible assets deductions | D14: 292 | F14: 0 | H14: 0 | L14: 292
B15: Excess of expected losses over impairment provisions | D15: 263 | F15: 0 | H15: 263 | L15: 526
B16: Change in treatment of material holdings | D16: 0 | F16: -5517 | H16: -5516 | J16: 11033 | L16: 0
B17: Material holdings deduction | D17: 0 | F17: 1704 | H17: 1703 | J17: 0 | L17: 3407
B18: Eligible provisions | D18: 0 | F18: 0 | H18: -618 | J18: 0 | L18: -618
B19: Subordinated debt movements:
B20: Foreign exchange | D20: 0 | F20: 40 | H20: 98 | J20: 0 | L20: 138
B21: New issuances | D21: 0 | F21: 0 | H21: 0 | J21: 0 | L21: 0
B22: Repurchases, redemptions, amortisation and other | D22: 0 | F22: -605 | H22: -1420 | J22: 0 | L22: -2025
B23: Other movements | D23: 422 | F23: 0 | H23: 191 | J23: 0 | L23: 613
B24: At 31 December 2013 | D24: 36991 | F24: 1183 | H24: 16583 | J24: 0 | L24: 54757
A26: 1 | B26: 31 December 2012 comparatives have not been restated to reflect the implementation of IAS 19R and IFRS 10.
A27: 2 | B27: Includes the impact to other comprehensive income and movement in the retirement benefit asset.

Sheet p73
B1: CAPITAL MANAGEMENT (continued)
B3: Risk-weighted assets
D4: At | F4: At
D5: 31 Dec | F5: 31 Dec
D6: 2013 | F6: 2012
B7: Divisional analysis of risk-weighted assets: | D7: £m | F7: £m
B9: Retail | D9: 85677 | F9: 95470
B10: Commercial Banking | D10: 138541 | F10: 165209
B11: Wealth, Asset Finance and International | D11: 25886 | F11: 36167
B12: Group Operations and Central items | D12: 13746 | F12: 13453
D13: 263850 | F13: 310299
B17: Risk type analysis of risk-weighted assets:
B18: Foundation Internal Ratings Based (IRB) approach | D18: 82870 | F18: 80612
B19: Retail IRB | D19: 85139 | F19: 91445
B20: Other IRB | D20: 9221 | F20: 12396
B21: IRB approach | D21: 177230 | F21: 184453
B22: Standardised approach | D22: 41150 | F22: 73665
B23: Credit risk | D23: 218380 | F23: 258118
B24: Counterparty credit risk | D24: 7794 | F24: 12848
B25: Operational risk | D25: 26594 | F25: 27939
B26: Market risk | D26: 11082 | F26: 11394
B27: Total risk-weighted assets | D27: 263850 | F27: 310299
B30: Risk weighted asset movement by key driver | D30: £bn | F30: £bn
B31: At 31 December 2012 | F31: 310.3
B32: Management of balance sheet | D32: -1.8
B33: Disposals | D33: -20.7
B34: External economic factors | D34: -15.4
B35: Model and methodology changes | D35: 3.2
B36: Regulatory policy change | D36: -5.4
B37: Other | D37: 0.4
B38: Credit risk-weighted asset movement | F38: -39.7
B39: Counterparty credit risk-weighted asset movement | F39: -5.1
B40: Operational risk-weighted asset movement | F40: -1.3
B41: Market risk-weighted asset movement | F41: -0.3
B42: At 31 December 2013 | F42: 263.9

Sheet p75
B1: CAPITAL MANAGEMENT (continued)
B3: Capital position on CRD IV basis
B6: At 31 December 2013 | D6: Prevailing rules as at 31 Dec 2013 | F6: Transitional CRD IV rules | H6: Fully loaded CRD IV rules
D7: £m | F7: £m | H7: £m
B9: Core/common equity tier 1 (CET1)
B10: Shareholders’ equity per balance sheet | D10: 38989 | F10: 38989 | H10: 38989 | K10: =IF(IF(E10="",TRUE,IF(CODE(E10)=150,TRUE,FALSE)),"",VALUE(SUBSTITUTE(E10,CHAR(160),""))) -> 
B11: Adjustments for insurance equity1 | D11: 0 | F11: -1917 | H11: -1917
B12: Regulatory adjustments:
B13: Non-controlling interests | D13: 32 | F13: 0 | H13: 0
B14: Unrealised reserves on available-for-sale assets | D14: 615 | F14: 0 | H14: 0 | O14: =IF(IF(I14="",TRUE,IF(CODE(I14)=150,TRUE,FALSE)),"",VALUE(SUBSTITUTE(I14,CHAR(160),""))) -> 
B15: Other adjustments | D15: 1614 | F15: 1295 | H15: 1295
D16: =SUM(D10:D15) -> 41250 | F16: =SUM(F10:F15) -> 38367 | H16: =SUM(H10:H15) -> 38367
B17: less: deductions from core/common equity tier 1
B18: Goodwill and other intangible assets1 | D18: -3815 | F18: -1979 | H18: =F18 -> -1979
B19: Excess of expected losses over impairment provisions | D19: -373 | F19: -866 | H19: =F19 -> -866
B20: Securitisation deductions | D20: -71 | F20: -141 | H20: =F20 -> -141
B21: Significant investments1 | D21: 0 | F21: -2909 | H21: -3185
B22: Deferred tax assets | D22: 0 | F22: -5025 | H22: -5155
B23: Core/common equity tier 1 capital | D23: =SUM(D16:D22) -> 36991 | F23: =SUM(F16:F22) -> 27447 | H23: =SUM(H16:H22) -> 27041
B24: Pro forma core/common equity tier 1 capital2 | D24: n/a | F24: 28218 | H24: 27925
B26: Additional tier 1 (AT1) | O26: =IF(IF(I26="",TRUE,IF(CODE(I26)=150,TRUE,FALSE)),"",VALUE(SUBSTITUTE(I26,CHAR(160),""))) -> 
B27: Additional tier 1 instruments | D27: 5042 | F27: 4486 | H27: 0 | O27: =IF(IF(I27="",TRUE,IF(CODE(I27)=150,TRUE,FALSE)),"",VALUE(SUBSTITUTE(I27,CHAR(160),""))) -> 
B28: less: deductions from tier 1
B29: Significant investments | D29: -3859 | F29: -677 | H29: 0
B30: Total tier 1 capital | D30: 38174 | F30: 31256 | H30: 27041
B31: Pro forma total tier 1 capital2 | D31: n/a | F31: 32027 | H31: 27925
B33: Tier 2
B34: Tier 2 instruments | D34: 20392 | F34: 19870 | H34: 15636
B35: Unrealised gain on available-for-sale equity investments | D35: 135 | F35: 0 | H35: 0
B36: Eligible provisions | D36: 359 | F36: 349 | H36: 349
B37: less: deductions from tier 2
B38: Excess of expected losses over impairment provisions | D38: -373 | F38: 0 | H38: 0
B39: Securitisation deductions | D39: -71 | F39: 0 | H39: 0
B40: Significant investments | D40: -3859 | F40: -1015 | H40: -1692
B41: Total capital resources | D41: 54757 | F41: 50460 | H41: 41334
B42: Pro forma total capital resources2 | D42: n/a | F42: 51231 | H42: 42218
B44: Risk-weighted assets | D44: 263850 | F44: 272092 | H44: 271078
B45: Risk-weighted assets - pro forma2 | D45: n/a | F45: 272641 | H45: 271908
B47: Core/common equity tier 1 capital ratio | D47: 0.14 | F47: 0.101 | H47: 0.1
B48: Tier 1 capital ratio | D48: 0.145 | F48: 0.115 | H48: 0.1
B49: Total capital ratio | D49: 0.208 | F49: 0.185 | H49: 0.152
B51: Pro forma core/common equity tier 1 capital ratio2 | D51: n/a | F51: 0.103 | H51: 0.103 | O51: =IF(IF(I51="",TRUE,IF(CODE(I51)=150,TRUE,FALSE)),"",VALUE(SUBSTITUTE(I51,CHAR(160),""))) -> 
B52: Pro forma tier 1 capital ratio2 | D52: n/a | F52: 0.117 | H52: 0.103 | O52: =IF(IF(I52="",TRUE,IF(CODE(I52)=150,TRUE,FALSE)),"",VALUE(SUBSTITUTE(I52,CHAR(160),""))) -> 
B53: Pro forma total capital ratio2 | D53: n/a | F53: 0.188 | H53: 0.155 | O53: =IF(IF(I53="",TRUE,IF(CODE(I53)=150,TRUE,FALSE)),"",VALUE(SUBSTITUTE(I53,CHAR(160),""))) -> 
B55: 31 December 20123
B56: Core/common equity tier 1 capital ratio | D56: 0.12 | F56: 0.116 | H56: 0.081
B57: Tier 1 capital ratio | D57: 0.138 | F57: 0.116 | H57: 0.081
B58: Total capital ratio | D58: 0.173 | F58: 0.167 | H58: 0.113
A60: 1 | B60: Removal of post-acquisition reserves impacts for Insurance business as under CRD IV, as implemented by PRA policy statement PS7/13, the deduction for significant investments in the equity of financial sector entities is based on cost of investment where previously this was based on net asset value. The overall impact of this change on the CRD IV ratios is negligible.
A61: 2 | B61: Includes the benefits of the announced sales of Heidelberger Leben, Scottish Widows Investment Partnership and Sainsbury’s Bank.
A62: 3 | B62: 31 December 2012 comparatives have not been restated to reflect the implementation of IAS 19R and IFRS 10.

Sheet p76
B1: CAPITAL MANAGEMENT (continued)
B3: Movements in capital
D5: Common equity tier 1 | F5: Additional Tier 1 | H5: Additional Tier 2 | J5: Total Capital
D6: £m | F6: £m | H6: £m | J6: £m
B8: At 31 December 20121 | D8: 37385 | F8: 0 | H8: 16424 | J8: 53809
B9: Update to transitional phasing and treatment of insurance | D9: -10979 | F9: 3846 | H9: 2748 | J9: -4385
B10: Loss attributable to ordinary shareholders | D10: -838 | F10: 0 | H10: 0 | J10: -838
B11: Share issuance | D11: 510 | F11: 0 | H11: 0 | J11: 510
B12: Pension movements:
B13: Implementation of IAS 19R2 | D13: -1258 | F13: 0 | H13: 0 | J13: -1258
B14: Deduction of pension asset | D14: 515 | F14: 0 | H14: 0 | J14: 515
B15: Movement through other comprehensive income | D15: -108 | F15: 0 | H15: 0 | J15: -108
B16: Available-for-sale reserve | D16: -1014 | F16: 0 | H16: 0 | J16: -1014
B17: Deferred tax asset | D17: 82 | F17: 0 | H17: 0 | J17: 82
B18: Goodwill and intangible assets deductions | D18: 292 | F18: 0 | H18: 0 | J18: 292
B19: Excess of expected losses over impairment provisions | D19: 406 | F19: 0 | H19: 0 | J19: 406
B20: Significant investment deduction | D20: 2075 | F20: 486 | H20: 729 | J20: 3290
B21: Eligible provisions | D21: 0 | F21: 0 | H21: 349 | J21: 349
B22: Subordinated debt movements:
B23: Grandfathering3 | D23: 0 | F23: -557 | H23: 172 | J23: -385
B24: Restucturing to ensure CRD IV compliance | D24: 0 | F24: 0 | H24: 932 | J24: 932
B25: Foreign exchange | D25: 0 | F25: -49 | H25: -102 | J25: -151
B26: Repurchases, redemptions and other | D26: 0 | F26: 83 | H26: -2048 | J26: -1965
B27: Other movements | D27: 379 | F27: 0 | H27: 0 | J27: 379
B28: At 31 December 2013 | D28: 27447 | F28: 3809 | H28: 19204 | J28: 50460
B29: Pro forma impacts4 | D29: 771 | F29: 0 | H29: 0 | J29: 771
B30: Pro forma at 31 December 20134 | D30: 28218 | F30: 3809 | H30: 19204 | J30: 51231
A34: 1 | B34: 31 December 2012 comparatives have not been restated to reflect the implementation of IAS 19R and IFRS 10.
A35: 2 | B35: Includes the impact to other comprehensive income and the movement in the retirement benefit asset.
A36: 3 | B36: Includes movement from 90% to 80% grandfathering and adjustment due to further clarification of grandfathering rules.
A37: 4 | B37: Includes the benefits of the announced sales of Heidelberger Leben, Scottish Widows Investment Partnership and Sainsbury’s Bank.

Sheet p78
B1: CAPITAL MANAGEMENT (continued)
B3: Leverage ratio on CRD IV basis
B5: At 31 December 2013 | D5: Transitional | E5: Fully loaded | G5: Fully loaded (with ineligible tier 1 instruments)1
D6: £m | F6: £m | H6: £m
B7: CRD IV rules
B8: Total tier 1 capital
B9: Common equity tier 1 capital | D9: 27447 | F9: 27041 | H9: =F9 -> 27041 | O9: =IF(IF(I9="",TRUE,IF(CODE(I9)=150,TRUE,FALSE)),"",VALUE(SUBSTITUTE(I9,CHAR(160),""))) -> 
B10: Tier 1 subordinated debt | D10: 4486 | F10: 0 | H10: 5042
B11: Tier 1 deductions | D11: -677 | F11: 0 | H11: 0
B12: Total tier 1 capital | D12: =SUM(D9:D11) -> 31256 | F12: =SUM(F9:F11) -> 27041 | H12: =SUM(H9:H11) -> 32083
B13: Pro forma total tier 1 capital | D13: 32027 | F13: 27925 | H13: 32967
B15: Exposure measure
B16: Total statutory balance sheet assets | D16: 847030 | F16: =D16 -> 847030 | H16: =F16 -> 847030
B17: Adjustment for insurance assets | D17: -84302 | F17: -83401 | H17: -83401
B18: Removal of accounting value for derivatives & securities financing transactions | D18: -61686 | F18: -61686 | H18: -61686
B19: Exposure value for derivatives | D19: 24598 | F19: 24598 | H19: 24598
B20: Exposure value for securities financing transactions | D20: 6700 | F20: =D20 -> 6700 | H20: =F20 -> 6700
B21: Off-balance sheet items | D21: 79927 | F21: 79927 | H21: 79927
B22: Other regulatory adjustments | D22: -10308 | F22: -10437 | H22: -10437
B23: Total exposures | D23: =SUM(D16:D22) -> 801959 | F23: =SUM(F16:F22) -> 802731 | H23: =SUM(H16:H22) -> 802731
B24: Pro forma total exposures2 | D24: 809090 | F24: 813055 | H24: =F24 -> 813055
B26: Leverage ratio | D26: 0.039 | F26: 0.034 | H26: 0.04
B27: Pro forma leverage ratio2 | D27: 0.04 | F27: 0.034 | H27: 0.041
B28: Leverage ratio at 31 December 20123 | D28: 0.044 | F28: 0.031 | H28: 0.038
B30: Basel III December 2010 rules4 :
B31: Leverage ratio | F31: 0.033 | H31: 0.039
B32: Pro forma leverage ratio2 | F32: 0.034 | H32: 0.04
B34: Basel III Jan 2014 rules5 :
B35: Leverage ratio | F35: 0.037 | H35: 0.044
B36: Pro forma leverage ratio2 | F36: 0.038 | H36: 0.045
A38: 1 | B38: Includes the full value of additional tier 1 instruments reported under the prevailing rules as at 31 December 2013. These instruments will become ineligible for inclusion in tier 1 capital over the transitional period.
A39: 2 | B39: Includes the benefits of the announced sales of Heidelberger Leben, Scottish Widows Investment Partnership and Sainsbury’s Bank.
A40: 3 | B40: 31 December 2012 comparatives have not been restated to reflect the implementation of IAS19R and IFRS10.
A41: 4 | B41: Exposure measure determined in accordance with the original December 2010 Basel III leverage ratio framework as interpreted through the July 2012 Basel III Quantitative Impact Study instructions and related guidance and as required by the PRA.
A42: 5 | B42: Exposure measure estimated in accordance with the January 2014 revised Basel III leverage ratio framework.
